Workbook

Sheet Поиск
A1: Ищем: щебень
A512: Файл: 5454.xlsx, Лист: анализ
A513: =SUM(A374:A512) -> 0 | B513: 0 | C513: 0 | D513: 0 | E513: 0 | F513: 0 | G513: 0 | H513: 0 | I513: 0 | J513: 0 | K513: 0 | L513: 0 | M513: 0 | N513: 0 | O513: 0 | P513: 0 | Q513: 0 | R513: 0 | S513: 0
A514: 0 | B514: 0 | C514: 0 | D514: 0 | E514: 0 | F514: 0 | G514: 0 | H514: 0 | I514: 0 | J514: 0 | K514: 0 | L514: 0 | M514: 0 | N514: 0 | O514: 0 | P514: 0 | Q514: 0 | R514: 0 | S514: 0
A515: 0 | B515: 0 | C515: 0 | D515: 0 | E515: 0 | F515: 0 | G515: 0 | H515: 0 | I515: 0 | J515: 0 | K515: 0 | L515: 0 | M515: 0 | N515: 0 | O515: 0 | P515: 0 | Q515: 0 | R515: 0 | S515: 0
A516: 0 | B516: 0 | C516: 0 | D516: 0 | E516: 0 | F516: 0 | G516: 0 | H516: 0 | I516: 0 | J516: 0 | K516: 0 | L516: 0 | M516: 0 | N516: 0 | O516: 0 | P516: 0 | Q516: 0 | R516: 0 | S516: 0
A517: 0 | B517: 0 | C517: 0 | D517: 0 | E517: 0 | F517: 0 | G517: 0 | H517: 0 | I517: 0 | J517: 0 | K517: 0 | L517: 0 | M517: 0 | N517: 0 | O517: 0 | P517: 0 | Q517: 0 | R517: 0 | S517: 0
A518: 0 | B518: 0 | C518: 0 | D518: 0 | E518: 0 | F518: 0 | G518: 0 | H518: 0 | I518: 0 | J518: 0 | K518: 0 | L518: 0 | M518: 0 | N518: 0 | O518: 0 | P518: 0 | Q518: 0 | R518: 0 | S518: 0
A519: 0 | B519: 0 | C519: 0 | D519: 0 | E519: 0 | F519: 0 | G519: 0 | H519: 0 | I519: 0 | J519: 0 | K519: 0 | L519: 0 | M519: 0 | N519: 0 | O519: 0 | P519: 0 | Q519: 0 | R519: 0 | S519: 0
A520: 0 | B520: 0 | C520: 0 | D520: 0 | E520: 0 | F520: 0 | G520: 0 | H520: 0 | I520: 0 | J520: 0 | K520: 0 | L520: 0 | M520: 0 | N520: 0 | O520: 0 | P520: 0 | Q520: 0 | R520: 0 | S520: 0
A521: 0 | B521: 0 | C521: 0 | D521: 0 | E521: 0 | F521: 0 | G521: 0 | H521: 0 | I521: 0 | J521: 0 | K521: 0 | L521: 0 | M521: 0 | N521: 0 | O521: 0 | P521: 0 | Q521: 0 | R521: 0 | S521: 0
A522: 0 | B522: 0 | C522: 0 | D522: 0 | E522: 0 | F522: 0 | G522: 0 | H522: 0 | I522: 0 | J522: 0 | K522: 0 | L522: 0 | M522: 0 | N522: 0 | O522: 0 | P522: 0 | Q522: 0 | R522: 0 | S522: 0
A523: 0 | B523: 0 | C523: 0 | D523: 0 | E523: 0 | F523: 0 | G523: 0 | H523: 0 | I523: 0 | J523: 0 | K523: 0 | L523: 0 | M523: 0 | N523: 0 | O523: 0 | P523: 0 | Q523: 0 | R523: 0 | S523: 0
A524: 0 | B524: 0 | C524: 0 | D524: 0 | E524: 0 | F524: 0 | G524: 0 | H524: 0 | I524: 0 | J524: 0 | K524: 0 | L524: 0 | M524: 0 | N524: 0 | O524: 0 | P524: 0 | Q524: 0 | R524: 0 | S524: 0
A525: 0 | B525: 0 | C525: 0 | D525: 0 | E525: 0 | F525: 0 | G525: 0 | H525: 0 | I525: 0 | J525: 0 | K525: 0 | L525: 0 | M525: 0 | N525: 0 | O525: 0 | P525: 0 | Q525: 0 | R525: 0 | S525: 0
A526: 0 | B526: 0 | C526: 0 | D526: 0 | E526: 0 | F526: 0 | G526: 0 | H526: 0 | I526: =SUM(I387:I525) -> 0 | J526: 0 | K526: 0 | L526: 0 | M526: 0 | N526: 0 | O526: 0 | P526: 0 | Q526: 0 | R526: 0 | S526: 0
A527: =SUM(A388:A526) -> 0 | B527: 0 | C527: 0 | D527: 0 | E527: 0 | F527: 0 | G527: 0 | H527: 0 | I527: 0 | J527: 0 | K527: 0 | L527: 0 | M527: 0 | N527: 0 | O527: 0 | P527: 0 | Q527: 0 | R527: 0 | S527: 0
A528: 0 | B528: 0 | C528: 0 | D528: 0 | E528: 0 | F528: 0 | G528: 0 | H528: 0 | I528: 0 | J528: 0 | K528: 0 | L528: 0 | M528: 0 | N528: 0 | O528: 0 | P528: 0 | Q528: 0 | R528: 0 | S528: 0
A529: 0 | B529: 0 | C529: 0 | D529: 0 | E529: 0 | F529: 0 | G529: 0 | H529: 0 | I529: 0 | J529: 0 | K529: 0 | L529: 0 | M529: 0 | N529: 0 | O529: 0 | P529: 0 | Q529: 0 | R529: 0 | S529: 0
A530: 0 | B530: 0 | C530: 0 | D530: 0 | E530: 0 | F530: 0 | G530: 0 | H530: 0 | I530: 0 | J530: 0 | K530: 0 | L530: 0 | M530: 0 | N530: 0 | O530: 0 | P530: 0 | Q530: 0 | R530: 0 | S530: 0
A531: 0 | B531: 0 | C531: 0 | D531: 0 | E531: 0 | F531: 0 | G531: 0 | H531: 0 | I531: 0 | J531: 0 | K531: 0 | L531: 0 | M531: 0 | N531: 0 | O531: 0 | P531: 0 | Q531: 0 | R531: 0 | S531: 0
A532: №п/п | B532: № по смете | C532: Название маитериалов | D532: Ед. изм. | E532: Выполнение под 0 | J532: ТПС-5 | O532: Разница
A533: №п/п | B533: № по смете | C533: Название маитериалов | D533: Ед. изм. | E533: Выполнение под 0 | J533: ТПС-5 | O533: Разница
A534: №п/п | B534: № по смете | C534: Название маитериалов | D534: Ед. изм. | E534: Выполнение под 0 | J534: ТПС-5 | O534: Разница
A535: №п/п | B535: № по смете | C535: Название маитериалов | D535: Ед. изм. | E535: Выполнение под 0 | J535: ТПС-5 | O535: Разница
A536: №п/п | B536: № по смете | C536: Название маитериалов | D536: Ед. изм. | E536: Выполнение под 0 | J536: ТПС-5 | O536: Разница
A537: №п/п | B537: № по смете | C537: Название маитериалов | D537: Ед. изм. | E537: Выполнение под 0 | J537: ТПС-5 | O537: Разница
A538: №п/п | B538: № по смете | C538: Название маитериалов | D538: Ед. изм. | E538: Выполнение под 0 | J538: ТПС-5 | O538: Разница
A539: 1 | B539: 2 | C539: 3 | D539: 4 | E539: 5 | F539: 6 | G539: 7 | H539: 8 | I539: 7 | J539: 8 | K539: 9 | L539: 12 | M539: 13 | N539: 10 | O539: 11 | P539: 16 | Q539: 17 | R539: 18 | S539: 12
A540: 1 | B540: 2 | C540: 3 | D540: 4 | E540: 5 | F540: 6 | G540: 7 | H540: 8 | I540: 7 | J540: 8 | K540: 9 | L540: 12 | M540: 13 | N540: 10 | O540: 11 | P540: 16 | Q540: 17 | R540: 18 | S540: 12
A541: 1 | B541: 2 | C541: 3 | D541: 4 | E541: 5 | F541: 6 | G541: 7 | H541: 8 | I541: 7 | J541: 8 | K541: 9 | L541: 12 | M541: 13 | N541: 10 | O541: 11 | P541: 16 | Q541: 17 | R541: 18 | S541: 12
A542: 1 | B542: 2 | C542: 3 | D542: 4 | E542: 5 | F542: 6 | G542: 7 | H542: 8 | I542: 7 | J542: 8 | K542: 9 | L542: 12 | M542: 13 | N542: 10 | O542: 11 | P542: 16 | Q542: 17 | R542: 18 | S542: 12
A543: 1 | B543: 2 | C543: 3 | D543: 4 | E543: 5 | F543: 6 | G543: 7 | H543: 8 | I543: 7 | J543: 8 | K543: 9 | L543: 12 | M543: 13 | N543: 10 | O543: 11 | P543: 16 | Q543: 17 | R543: 18 | S543: 12
A544: 1 | B544: 2 | C544: 3 | D544: 4 | E544: 5 | F544: 6 | G544: 7 | H544: 8 | I544: 7 | J544: 8 | K544: 9 | L544: 12 | M544: 13 | N544: 10 | O544: 11 | P544: 16 | Q544: 17 | R544: 18 | S544: 12
A545: 1 | B545: 2 | C545: 3 | D545: 4 | E545: 5 | F545: 6 | G545: 7 | H545: 8 | I545: 7 | J545: 8 | K545: 9 | L545: 12 | M545: 13 | N545: 10 | O545: 11 | P545: 16 | Q545: 17 | R545: 18 | S545: 12
A546: 1 | B546: 2 | C546: 3 | D546: 4 | E546: 5 | F546: 6 | G546: 7 | H546: 8 | I546: 7 | J546: 8 | K546: 9 | L546: 12 | M546: 13 | N546: 10 | O546: 11 | P546: 16 | Q546: 17 | R546: 18 | S546: 12
A547: 1 | B547: 2 | C547: 3 | D547: 4 | E547: 5 | F547: 6 | G547: 7 | H547: 8 | I547: 7 | J547: 8 | K547: 9 | L547: 12 | M547: 13 | N547: 10 | O547: 11 | P547: 16 | Q547: 17 | R547: 18 | S547: 12
A548: 1 | B548: 2 | C548: 3 | D548: 4 | E548: 5 | F548: 6 | G548: 7 | H548: 8 | I548: 7 | J548: 8 | K548: 9 | L548: 12 | M548: 13 | N548: 10 | O548: 11 | P548: 16 | Q548: 17 | R548: 18 | S548: 12
A549: 1 | B549: 2 | C549: 3 | D549: 4 | E549: 5 | F549: 6 | G549: 7 | H549: 8 | I549: 7 | J549: 8 | K549: 9 | L549: 12 | M549: 13 | N549: 10 | O549: 11 | P549: 16 | Q549: 17 | R549: 18 | S549: 12
A550: 1 | B550: 2 | C550: 3 | D550: 4 | E550: 5 | F550: 6 | G550: 7 | H550: 8 | I550: 7 | J550: 8 | K550: 9 | L550: 12 | M550: 13 | N550: 10 | O550: 11 | P550: 16 | Q550: 17 | R550: 18 | S550: 12
A551: 1 | B551: 2 | C551: 3 | D551: 4 | E551: 5 | F551: 6 | G551: 7 | H551: 8 | I551: 7 | J551: 8 | K551: 9 | L551: 12 | M551: 13 | N551: 10 | O551: 11 | P551: 16 | Q551: 17 | R551: 18 | S551: 12
A552: 1 | B552: 2 | C552: 3 | D552: 4 | E552: 5 | F552: 6 | G552: 7 | H552: 8 | I552: 7 | J552: 8 | K552: 9 | L552: 12 | M552: 13 | N552: 10 | O552: 11 | P552: 16 | Q552: 17 | R552: 18 | S552: 12
A553: 1 | B553: 2 | C553: 3 | D553: 4 | E553: 5 | F553: 6 | G553: 7 | H553: 8 | I553: 7 | J553: 8 | K553: 9 | L553: 12 | M553: 13 | N553: 10 | O553: 11 | P553: 16 | Q553: 17 | R553: 18 | S553: 12
A554: 1 | B554: 2 | C554: 3 | D554: 4 | E554: 5 | F554: 6 | G554: 7 | H554: 8 | I554: 7 | J554: 8 | K554: 9 | L554: 12 | M554: 13 | N554: 10 | O554: 11 | P554: 16 | Q554: 17 | R554: 18 | S554: 12
A555: 1 | B555: 2 | C555: 3 | D555: 4 | E555: 5 | F555: 6 | G555: 7 | H555: 8 | I555: 7 | J555: 8 | K555: 9 | L555: 12 | M555: 13 | N555: 10 | O555: 11 | P555: 16 | Q555: 17 | R555: 18 | S555: 12
A556: 1 | B556: 2 | C556: 3 | D556: 4 | E556: 5 | F556: 6 | G556: 7 | H556: 8 | I556: 7 | J556: 8 | K556: 9 | L556: 12 | M556: 13 | N556: 10 | O556: 11 | P556: 16 | Q556: 17 | R556: 18 | S556: 12
A557: 1 | B557: 2 | C557: 3 | D557: 4 | E557: 5 | F557: 6 | G557: 7 | H557: 8 | I557: 7 | J557: 8 | K557: 9 | L557: 12 | M557: 13 | N557: 10 | O557: 11 | P557: 16 | Q557: 17 | R557: 18 | S557: 12
A558: 1 | B558: 1 | C558: Бетон тяжелый, класс В15 В20 | D558: м3 | E558: =SUM(E548:E557) -> 50 | F558: 4300.9 | G558: =SUM(G548:G557) -> 70 | H558: =SUM(H548:H557) -> 80 | I558: =SUM(I548:I557) -> 70 | O558: =E558-J558 -> 50 | Q558: =G558-L558 -> 70 | R558: =H558-M558 -> 80 | S558: =I558-N558 -> 70
A559: 1 | B559: 1 | C559: Бетон тяжелый, класс В15 В20 | D559: м3 | E559: =SUM(E549:E558) -> 95 | F559: 4300.9 | G559: =SUM(G549:G558) -> 133 | H559: =SUM(H549:H558) -> 152 | I559: =SUM(I549:I558) -> 133 | O559: =E559-J559 -> 95 | Q559: =G559-L559 -> 133 | R559: =H559-M559 -> 152 | S559: =I559-N559 -> 133
A560: 1 | B560: 1 | C560: Бетон тяжелый, класс В15 В20 | D560: м3 | E560: =SUM(E550:E559) -> 185 | F560: 4300.9 | G560: =SUM(G550:G559) -> 259 | H560: =SUM(H550:H559) -> 296 | I560: =SUM(I550:I559) -> 259 | O560: =E560-J560 -> 185 | Q560: =G560-L560 -> 259 | R560: =H560-M560 -> 296 | S560: =I560-N560 -> 259
A561: 1 | B561: 1 | C561: Бетон тяжелый, класс В15 В20 | D561: м3 | E561: =SUM(E551:E560) -> 365 | F561: 4300.9 | G561: =SUM(G551:G560) -> 511 | H561: =SUM(H551:H560) -> 584 | I561: =SUM(I551:I560) -> 511 | O561: =E561-J561 -> 365 | Q561: =G561-L561 -> 511 | R561: =H561-M561 -> 584 | S561: =I561-N561 -> 511
A562: 1 | B562: 1 | C562: Бетон тяжелый, класс В15 В20 | D562: м3 | E562: =SUM(E552:E561) -> 725 | F562: 4300.9 | G562: =SUM(G552:G561) -> 1015 | H562: =SUM(H552:H561) -> 1160 | I562: =SUM(I552:I561) -> 1015 | O562: =E562-J562 -> 725 | Q562: =G562-L562 -> 1015 | R562: =H562-M562 -> 1160 | S562: =I562-N562 -> 1015
A563: 1 | B563: 1 | C563: Бетон тяжелый, класс В15 В20 | D563: м3 | E563: =SUM(E553:E562) -> 1445 | F563: 4300.9 | G563: =SUM(G553:G562) -> 2023 | H563: =SUM(H553:H562) -> 2312 | I563: =SUM(I553:I562) -> 2023 | O563: =E563-J563 -> 1445 | Q563: =G563-L563 -> 2023 | R563: =H563-M563 -> 2312 | S563: =I563-N563 -> 2023
A564: 1 | B564: 1 | C564: Бетон тяжелый, класс В15 В20 | D564: м3 | E564: =SUM(E554:E563) -> 2885 | F564: 4300.9 | G564: =SUM(G554:G563) -> 4039 | H564: =SUM(H554:H563) -> 4616 | I564: =SUM(I554:I563) -> 4039 | O564: =E564-J564 -> 2885 | Q564: =G564-L564 -> 4039 | R564: =H564-M564 -> 4616 | S564: =I564-N564 -> 4039
A565: 1 | B565: 1 | C565: Бетон тяжелый, класс В15 В20 | D565: м3 | E565: =SUM(E555:E564) -> 5765 | F565: 4300.9 | G565: =SUM(G555:G564) -> 8071 | H565: =SUM(H555:H564) -> 9224 | I565: =SUM(I555:I564) -> 8071 | O565: =E565-J565 -> 5765 | Q565: =G565-L565 -> 8071 | R565: =H565-M565 -> 9224 | S565: =I565-N565 -> 8071
A566: 1 | B566: 1 | C566: Бетон тяжелый, класс В15 В20 | D566: м3 | E566: =SUM(E556:E565) -> 11525 | F566: 4300.9 | G566: =SUM(G556:G565) -> 16135 | H566: =SUM(H556:H565) -> 18440 | I566: =SUM(I556:I565) -> 16135 | O566: =E566-J566 -> 11525 | Q566: =G566-L566 -> 16135 | R566: =H566-M566 -> 18440 | S566: =I566-N566 -> 16135
A567: 1 | B567: 1 | C567: Бетон тяжелый, класс В15 В20 | D567: м3 | E567: =SUM(E557:E566) -> 23045 | F567: 4300.9 | G567: =SUM(G557:G566) -> 32263 | H567: =SUM(H557:H566) -> 36872 | I567: =SUM(I557:I566) -> 32263 | O567: =E567-J567 -> 23045 | Q567: =G567-L567 -> 32263 | R567: =H567-M567 -> 36872 | S567: =I567-N567 -> 32263
A568: 1 | B568: 1 | C568: Бетон тяжелый, класс В15 В20 | D568: м3 | E568: =SUM(E558:E567) -> 46085 | F568: 4300.9 | G568: =SUM(G558:G567) -> 64519 | H568: =SUM(H558:H567) -> 73736 | I568: =SUM(I558:I567) -> 64519 | O568: =E568-J568 -> 46085 | Q568: =G568-L568 -> 64519 | R568: =H568-M568 -> 73736 | S568: =I568-N568 -> 64519
A569: 1 | B569: 1 | C569: Бетон тяжелый, класс В15 В20 | D569: м3 | E569: =SUM(E559:E568) -> 92120 | F569: 4300.9 | G569: =SUM(G559:G568) -> 128968 | H569: =SUM(H559:H568) -> 147392 | I569: =SUM(I559:I568) -> 128968 | O569: =E569-J569 -> 92120 | Q569: =G569-L569 -> 128968 | R569: =H569-M569 -> 147392 | S569: =I569-N569 -> 128968
A570: 1 | B570: 1 | C570: Бетон тяжелый, класс В15 В20 | D570: м3 | E570: =SUM(E560:E569) -> 184145 | F570: 4300.9 | G570: =SUM(G560:G569) -> 257803 | H570: =SUM(H560:H569) -> 294632 | I570: =SUM(I560:I569) -> 257803 | O570: =E570-J570 -> 184145 | Q570: =G570-L570 -> 257803 | R570: =H570-M570 -> 294632 | S570: =I570-N570 -> 257803
A571: 2 | B571: 2 | C571: Блоки бетонные упоров У-1 объемом менее 0,3 м3: | D571: м3 | E571: =SUM(E567:E570) -> 345395 | F571: 3896.03 | G571: =SUM(G567:G570) -> 483553 | H571: =SUM(H567:H570) -> 552632 | I571: =SUM(I567:I570) -> 483553 | O571: =E571-J571 -> 345395 | Q571: =G571-L571 -> 483553 | R571: =H571-M571 -> 552632 | S571: =I571-N571 -> 483553
A572: 2 | B572: 2 | C572: Блоки бетонные упоров У-1 объемом менее 0,3 м3: | D572: м3 | E572: =SUM(E568:E571) -> 667745 | F572: 3896.03 | G572: =SUM(G568:G571) -> 934843 | H572: =SUM(H568:H571) -> 1068392 | I572: =SUM(I568:I571) -> 934843 | O572: =E572-J572 -> 667745 | Q572: =G572-L572 -> 934843 | R572: =H572-M572 -> 1068392 | S572: =I572-N572 -> 934843
A573: 2 | B573: 2 | C573: Блоки бетонные упоров У-1 объемом менее 0,3 м3: | D573: м3 | E573: =SUM(E569:E572) -> 1289405 | F573: 3896.03 | G573: =SUM(G569:G572) -> 1805167 | H573: =SUM(H569:H572) -> 2063048 | I573: =SUM(I569:I572) -> 1805167 | O573: =E573-J573 -> 1289405 | Q573: =G573-L573 -> 1805167 | R573: =H573-M573 -> 2063048 | S573: =I573-N573 -> 1805167
A574: 2 | B574: 2 | C574: Блоки бетонные упоров У-1 объемом менее 0,3 м3: | D574: м3 | E574: =SUM(E570:E573) -> 2486690 | F574: 3896.03 | G574: =SUM(G570:G573) -> 3481366 | H574: =SUM(H570:H573) -> 3978704 | I574: =SUM(I570:I573) -> 3481366 | O574: =E574-J574 -> 2486690 | Q574: =G574-L574 -> 3481366 | R574: =H574-M574 -> 3978704 | S574: =I574-N574 -> 3481366
A575: 2 | B575: 2 | C575: Блоки бетонные упоров У-1 объемом менее 0,3 м3: | D575: м3 | E575: =SUM(E571:E574) -> 4789235 | F575: 3896.03 | G575: =SUM(G571:G574) -> 6704929 | H575: =SUM(H571:H574) -> 7662776 | I575: =SUM(I571:I574) -> 6704929 | O575: =E575-J575 -> 4789235 | Q575: =G575-L575 -> 6704929 | R575: =H575-M575 -> 7662776 | S575: =I575-N575 -> 6704929
A576: 2 | B576: 2 | C576: Блоки бетонные упоров У-1 объемом менее 0,3 м3: | D576: м3 | E576: =SUM(E572:E575) -> 9233075 | F576: 3896.03 | G576: =SUM(G572:G575) -> 12926305 | H576: =SUM(H572:H575) -> 14772920 | I576: =SUM(I572:I575) -> 12926305 | O576: =E576-J576 -> 9233075 | Q576: =G576-L576 -> 12926305 | R576: =H576-M576 -> 14772920 | S576: =I576-N576 -> 12926305
A577: 2 | B577: 2 | C577: Блоки бетонные упоров У-1 объемом менее 0,3 м3: | D577: м3 | E577: =SUM(E573:E576) -> 17798405 | F577: 3896.03 | G577: =SUM(G573:G576) -> 24917767 | H577: =SUM(H573:H576) -> 28477448 | I577: =SUM(I573:I576) -> 24917767 | O577: =E577-J577 -> 17798405 | Q577: =G577-L577 -> 24917767 | R577: =H577-M577 -> 28477448 | S577: =I577-N577 -> 24917767
A578: 2 | B578: 2 | C578: Блоки бетонные упоров У-1 объемом менее 0,3 м3: | D578: м3 | E578: =SUM(E574:E577) -> 34307405 | F578: 3896.03 | G578: =SUM(G574:G577) -> 48030367 | H578: =SUM(H574:H577) -> 54891848 | I578: =SUM(I574:I577) -> 48030367 | O578: =E578-J578 -> 34307405 | Q578: =G578-L578 -> 48030367 | R578: =H578-M578 -> 54891848 | S578: =I578-N578 -> 48030367
A579: 2 | B579: 2 | C579: Блоки бетонные упоров У-1 объемом менее 0,3 м3: | D579: м3 | E579: =SUM(E575:E578) -> 66128120 | F579: 3896.03 | G579: =SUM(G575:G578) -> 92579368 | H579: =SUM(H575:H578) -> 105804992 | I579: =SUM(I575:I578) -> 92579368 | O579: =E579-J579 -> 66128120 | Q579: =G579-L579 -> 92579368 | R579: =H579-M579 -> 105804992 | S579: =I579-N579 -> 92579368
A580: 2 | B580: 2 | C580: Блоки бетонные упоров У-1 объемом менее 0,3 м3: | D580: м3 | E580: =SUM(E576:E579) -> 127467005 | F580: 3896.03 | G580: =SUM(G576:G579) -> 178453807 | H580: =SUM(H576:H579) -> 203947208 | I580: =SUM(I576:I579) -> 178453807 | O580: =E580-J580 -> 127467005 | Q580: =G580-L580 -> 178453807 | R580: =H580-M580 -> 203947208 | S580: =I580-N580 -> 178453807
A581: 2 | B581: 2 | C581: Блоки бетонные упоров У-1 объемом менее 0,3 м3: | D581: м3 | E581: =SUM(E577:E580) -> 245700935 | F581: 3896.03 | G581: =SUM(G577:G580) -> 343981309 | H581: =SUM(H577:H580) -> 393121496 | I581: =SUM(I577:I580) -> 343981309 | O581: =E581-J581 -> 245700935 | Q581: =G581-L581 -> 343981309 | R581: =H581-M581 -> 393121496 | S581: =I581-N581 -> 343981309
A582: 2 | B582: 2 | C582: Блоки бетонные упоров У-1 объемом менее 0,3 м3: | D582: м3 | E582: =SUM(E578:E581) -> 473603465 | F582: 3896.03 | G582: =SUM(G578:G581) -> 663044851 | H582: =SUM(H578:H581) -> 757765544 | I582: =SUM(I578:I581) -> 663044851 | O582: =E582-J582 -> 473603465 | Q582: =G582-L582 -> 663044851 | R582: =H582-M582 -> 757765544 | S582: =I582-N582 -> 663044851
A583: 2 | B583: 2 | C583: Блоки бетонные упоров У-1 объемом менее 0,3 м3: | D583: м3 | E583: =SUM(E579:E582) -> 912899525 | F583: 3896.03 | G583: =SUM(G579:G582) -> 1278059335 | H583: =SUM(H579:H582) -> 1460639240 | I583: =SUM(I579:I582) -> 1278059335 | O583: =E583-J583 -> 912899525 | Q583: =G583-L583 -> 1278059335 | R583: =H583-M583 -> 1460639240 | S583: =I583-N583 -> 1278059335
A584: 3 | B584: 3 | C584: Геосетка ССНП 30/30-2,5 / Геосетка ПС 50/50-20: | D584: м2 | E584: =SUM(E580:E583) -> 1759670930 | F584: 62,37 133,65 127,14 | G584: =SUM(G580:G583) -> 2463539302 | H584: =SUM(H580:H583) -> 2815473488 | I584: =SUM(I580:I583) -> 2463539302 | L584: =K584*J584 -> 0 | M584: =L584*1.179 -> 0 | N584: =M584*1.18 -> 0 | O584: =E584-J584 -> 1759670930 | Q584: =G584-L584 -> 2463539302 | R584: =H584-M584 -> 2815473488 | S584: =I584-N584 -> 2463539302
A585: 3 | B585: 3 | C585: Геосетка ССНП 30/30-2,5 / Геосетка ПС 50/50-20: | D585: м2 | E585: =SUM(E581:E584) -> 3391874855 | F585: 62,37 133,65 127,14 | G585: =SUM(G581:G584) -> 4748624797 | H585: =SUM(H581:H584) -> 5426999768 | I585: =SUM(I581:I584) -> 4748624797 | L585: =K585*J585 -> 0 | M585: =L585*1.179 -> 0 | N585: =M585*1.18 -> 0 | O585: =E585-J585 -> 3391874855 | Q585: =G585-L585 -> 4748624797 | R585: =H585-M585 -> 5426999768 | S585: =I585-N585 -> 4748624797
A586: 3 | B586: 3 | C586: Геосетка ССНП 30/30-2,5 / Геосетка ПС 50/50-20: | D586: м2 | E586: =SUM(E582:E585) -> 6538048775 | F586: 62,37 133,65 127,14 | G586: =SUM(G582:G585) -> 9153268285 | H586: =SUM(H582:H585) -> 10460878040 | I586: =SUM(I582:I585) -> 9153268285 | L586: =K586*J586 -> 0 | M586: =L586*1.179 -> 0 | N586: =M586*1.18 -> 0 | O586: =E586-J586 -> 6538048775 | Q586: =G586-L586 -> 9153268285 | R586: =H586-M586 -> 10460878040 | S586: =I586-N586 -> 9153268285
A587: 3 | B587: 3 | C587: Геосетка ССНП 30/30-2,5 / Геосетка ПС 50/50-20: | D587: м2 | E587: =SUM(E583:E586) -> 12602494085 | F587: 62,37 133,65 127,14 | G587: =SUM(G583:G586) -> 17643491719 | H587: =SUM(H583:H586) -> 20163990536 | I587: =SUM(I583:I586) -> 17643491719 | L587: =K587*J587 -> 0 | M587: =L587*1.179 -> 0 | N587: =M587*1.18 -> 0 | O587: =E587-J587 -> 12602494085 | Q587: =G587-L587 -> 17643491719 | R587: =H587-M587 -> 20163990536 | S587: =I587-N587 -> 17643491719
A588: 3 | B588: 3 | C588: Геосетка ССНП 30/30-2,5 / Геосетка ПС 50/50-20: | D588: м2 | E588: =SUM(E584:E587) -> 24292088645 | F588: 62,37 133,65 127,14 | G588: =SUM(G584:G587) -> 34008924103 | H588: =SUM(H584:H587) -> 38867341832 | I588: =SUM(I584:I587) -> 34008924103 | L588: =K588*J588 -> 0 | M588: =L588*1.179 -> 0 | N588: =M588*1.18 -> 0 | O588: =E588-J588 -> 24292088645 | Q588: =G588-L588 -> 34008924103 | R588: =H588-M588 -> 38867341832 | S588: =I588-N588 -> 34008924103
A589: 3 | B589: 3 | C589: Геосетка ССНП 30/30-2,5 / Геосетка ПС 50/50-20: | D589: м2 | E589: =SUM(E585:E588) -> 46824506360 | F589: 62,37 133,65 127,14 | G589: =SUM(G585:G588) -> 65554308904 | H589: =SUM(H585:H588) -> 74919210176 | I589: =SUM(I585:I588) -> 65554308904 | L589: =K589*J589 -> 0 | M589: =L589*1.179 -> 0 | N589: =M589*1.18 -> 0 | O589: =E589-J589 -> 46824506360 | Q589: =G589-L589 -> 65554308904 | R589: =H589-M589 -> 74919210176 | S589: =I589-N589 -> 65554308904
A590: 3 | B590: 3 | C590: Геосетка ССНП 30/30-2,5 / Геосетка ПС 50/50-20: | D590: м2 | E590: =SUM(E586:E589) -> 90257137865 | F590: 62,37 133,65 127,14 | G590: =SUM(G586:G589) -> 126359993011 | H590: =SUM(H586:H589) -> 144411420584 | I590: =SUM(I586:I589) -> 126359993011 | L590: =K590*J590 -> 0 | M590: =L590*1.179 -> 0 | N590: =M590*1.18 -> 0 | O590: =E590-J590 -> 90257137865 | Q590: =G590-L590 -> 126359993011 | R590: =H590-M590 -> 144411420584 | S590: =I590-N590 -> 126359993011
A591: 3 | B591: 3 | C591: Геосетка ССНП 30/30-2,5 / Геосетка ПС 50/50-20: | D591: м2 | E591: =SUM(E587:E590) -> 173976226955 | F591: 62,37 133,65 127,14 | G591: =SUM(G587:G590) -> 243566717737 | H591: =SUM(H587:H590) -> 278361963128 | I591: =SUM(I587:I590) -> 243566717737 | L591: =K591*J591 -> 0 | M591: =L591*1.179 -> 0 | N591: =M591*1.18 -> 0 | O591: =E591-J591 -> 173976226955 | Q591: =G591-L591 -> 243566717737 | R591: =H591-M591 -> 278361963128 | S591: =I591-N591 -> 243566717737
A592: 3 | B592: 3 | C592: Геосетка ССНП 30/30-2,5 / Геосетка ПС 50/50-20: | D592: м2 | E592: =SUM(E588:E591) -> 335349959825 | F592: 62,37 133,65 127,14 | G592: =SUM(G588:G591) -> 469489943755 | H592: =SUM(H588:H591) -> 536559935720 | I592: =SUM(I588:I591) -> 469489943755 | L592: =K592*J592 -> 0 | M592: =L592*1.179 -> 0 | N592: =M592*1.18 -> 0 | O592: =E592-J592 -> 335349959825 | Q592: =G592-L592 -> 469489943755 | R592: =H592-M592 -> 536559935720 | S592: =I592-N592 -> 469489943755
A593: 3 | B593: 3 | C593: Геосетка ССНП 30/30-2,5 / Геосетка ПС 50/50-20: | D593: м2 | E593: =SUM(E589:E592) -> 646407831005 | F593: 62,37 133,65 127,14 | G593: =SUM(G589:G592) -> 904970963407 | H593: =SUM(H589:H592) -> 1034252529608 | I593: =SUM(I589:I592) -> 904970963407 | L593: =K593*J593 -> 0 | M593: =L593*1.179 -> 0 | N593: =M593*1.18 -> 0 | O593: =E593-J593 -> 646407831005 | Q593: =G593-L593 -> 904970963407 | R593: =H593-M593 -> 1034252529608 | S593: =I593-N593 -> 904970963407
A594: 3 | B594: 3 | C594: Геосетка ССНП 30/30-2,5 / Геосетка ПС 50/50-20: | D594: м2 | E594: =SUM(E590:E593) -> 1245991155650 | F594: 62,37 133,65 127,14 | G594: =SUM(G590:G593) -> 1744387617910 | H594: =SUM(H590:H593) -> 1993585849040 | I594: =SUM(I590:I593) -> 1744387617910 | L594: =K594*J594 -> 0 | M594: =L594*1.179 -> 0 | N594: =M594*1.18 -> 0 | O594: =E594-J594 -> 1245991155650 | Q594: =G594-L594 -> 1744387617910 | R594: =H594-M594 -> 1993585849040 | S594: =I594-N594 -> 1744387617910
A595: 3 | B595: 3 | C595: Геосетка ССНП 30/30-2,5 / Геосетка ПС 50/50-20: | D595: м2 | E595: =SUM(E591:E594) -> 2401725173435 | F595: 62,37 133,65 127,14 | G595: =SUM(G591:G594) -> 3362415242809 | H595: =SUM(H591:H594) -> 3842760277496 | I595: =SUM(I591:I594) -> 3362415242809 | L595: =K595*J595 -> 0 | M595: =L595*1.179 -> 0 | N595: =M595*1.18 -> 0 | O595: =E595-J595 -> 2401725173435 | Q595: =G595-L595 -> 3362415242809 | R595: =H595-M595 -> 3842760277496 | S595: =I595-N595 -> 3362415242809
A596: 3 | B596: 3 | C596: Геосетка ССНП 30/30-2,5 / Геосетка ПС 50/50-20: | D596: м2 | E596: =SUM(E592:E595) -> 4629474119915 | F596: 62,37 133,65 127,14 | G596: =SUM(G592:G595) -> 6481263767881 | H596: =SUM(H592:H595) -> 7407158591864 | I596: =SUM(I592:I595) -> 6481263767881 | L596: =K596*J596 -> 0 | M596: =L596*1.179 -> 0 | N596: =M596*1.18 -> 0 | O596: =E596-J596 -> 4629474119915 | Q596: =G596-L596 -> 6481263767881 | R596: =H596-M596 -> 7407158591864 | S596: =I596-N596 -> 6481263767881
A597: 3 | B597: 3 | C597: Геосетка ССНП 30/30-2,5 / Геосетка ПС 50/50-20: | D597: м2 | E597: =SUM(E593:E596) -> 8923598280005 | F597: 62,37 133,65 127,14 | G597: =SUM(G593:G596) -> 12493037592007 | H597: =SUM(H593:H596) -> 14277757248008 | I597: =SUM(I593:I596) -> 12493037592007 | L597: =K597*J597 -> 0 | M597: =L597*1.179 -> 0 | N597: =M597*1.18 -> 0 | O597: =E597-J597 -> 8923598280005 | Q597: =G597-L597 -> 12493037592007 | R597: =H597-M597 -> 14277757248008 | S597: =I597-N597 -> 12493037592007
A598: 3 | B598: 3 | C598: Геосетка ССНП 30/30-2,5 / Геосетка ПС 50/50-20: | D598: м2 | E598: =SUM(E594:E597) -> 17200788729005 | F598: 62,37 133,65 127,14 | G598: =SUM(G594:G597) -> 24081104220607 | H598: =SUM(H594:H597) -> 27521261966408 | I598: =SUM(I594:I597) -> 24081104220607 | L598: =K598*J598 -> 0 | M598: =L598*1.179 -> 0 | N598: =M598*1.18 -> 0 | O598: =E598-J598 -> 17200788729005 | Q598: =G598-L598 -> 24081104220607 | R598: =H598-M598 -> 27521261966408 | S598: =I598-N598 -> 24081104220607
A599: 3 | B599: 3 | C599: Геосетка ССНП 30/30-2,5 / Геосетка ПС 50/50-20: | D599: м2 | E599: =SUM(E595:E598) -> 33155586302360 | F599: 62,37 133,65 127,14 | G599: =SUM(G595:G598) -> 46417820823304 | H599: =SUM(H595:H598) -> 53048938083776 | I599: =SUM(I595:I598) -> 46417820823304 | L599: =K599*J599 -> 0 | M599: =L599*1.179 -> 0 | N599: =M599*1.18 -> 0 | O599: =E599-J599 -> 33155586302360 | Q599: =G599-L599 -> 46417820823304 | R599: =H599-M599 -> 53048938083776 | S599: =I599-N599 -> 46417820823304
A600: 4 | B600: 4 | C600: Геотекстильное полотно Геоком Д-450: | D600: м2 | E600: =SUM(E592:E599) -> 68538921551200 | F600: 37.2 | G600: =SUM(G592:G599) -> 95954490171680 | H600: =SUM(H592:H599) -> 109662274481920 | I600: =SUM(I592:I599) -> 95954490171680 | O600: =E600-J600 -> 68538921551200 | Q600: =G600-L600 -> 95954490171680 | R600: =H600-M600 -> 109662274481920 | S600: =I600-N600 -> 95954490171680
A601: 4 | B601: 4 | C601: Геотекстильное полотно Геоком Д-450: | D601: м2 | E601: =SUM(E593:E600) -> 136742493142575 | F601: 37.2 | G601: =SUM(G593:G600) -> 191439490399605 | H601: =SUM(H593:H600) -> 218787989028120 | I601: =SUM(I593:I600) -> 191439490399605 | O601: =E601-J601 -> 136742493142575 | Q601: =G601-L601 -> 191439490399605 | R601: =H601-M601 -> 218787989028120 | S601: =I601-N601 -> 191439490399605
A602: 4 | B602: 4 | C602: Геотекстильное полотно Геоком Д-450: | D602: м2 | E602: =SUM(E594:E601) -> 272838578454145 | F602: 37.2 | G602: =SUM(G594:G601) -> 381974009835803 | H602: =SUM(H594:H601) -> 436541725526632 | I602: =SUM(I594:I601) -> 381974009835803 | O602: =E602-J602 -> 272838578454145 | Q602: =G602-L602 -> 381974009835803 | R602: =H602-M602 -> 436541725526632 | S602: =I602-N602 -> 381974009835803
A603: 4 | B603: 4 | C603: Геотекстильное полотно Геоком Д-450: | D603: м2 | E603: =SUM(E595:E602) -> 544431165752640 | F603: 37.2 | G603: =SUM(G595:G602) -> 762203632053696 | H603: =SUM(H595:H602) -> 871089865204224 | I603: =SUM(I595:I602) -> 762203632053696 | O603: =E603-J603 -> 544431165752640 | Q603: =G603-L603 -> 762203632053696 | R603: =H603-M603 -> 871089865204224 | S603: =I603-N603 -> 762203632053696
A604: 4 | B604: 4 | C604: Геотекстильное полотно Геоком Д-450: | D604: м2 | E604: =SUM(E596:E603) -> 1086460606331845 | F604: 37.2 | G604: =SUM(G596:G603) -> 1521044848864583 | H604: =SUM(H596:H603) -> 1738336970130952 | I604: =SUM(I596:I603) -> 1521044848864583 | O604: =E604-J604 -> 1086460606331845 | Q604: =G604-L604 -> 1521044848864583 | R604: =H604-M604 -> 1738336970130952 | S604: =I604-N604 -> 1521044848864583
A605: 4 | B605: 4 | C605: Геотекстильное полотно Геоком Д-450: | D605: м2 | E605: =SUM(E597:E604) -> 2168291738543775 | F605: 37.2 | G605: =SUM(G597:G604) -> 3035608433961285 | H605: =SUM(H597:H604) -> 3469266781670040 | I605: =SUM(I597:I604) -> 3035608433961285 | O605: =E605-J605 -> 2168291738543775 | Q605: =G605-L605 -> 3035608433961285 | R605: =H605-M605 -> 3469266781670040 | S605: =I605-N605 -> 3035608433961285
A606: 4 | B606: 4 | C606: Геотекстильное полотно Геоком Д-450: | D606: м2 | E606: =SUM(E598:E605) -> 4327659878807545 | F606: 37.2 | G606: =SUM(G598:G605) -> 6058723830330563 | H606: =SUM(H598:H605) -> 6924255806092072 | I606: =SUM(I598:I605) -> 6058723830330563 | O606: =E606-J606 -> 4327659878807545 | Q606: =G606-L606 -> 6058723830330563 | R606: =H606-M606 -> 6924255806092072 | S606: =I606-N606 -> 6058723830330563
A607: 4 | B607: 4 | C607: Геотекстильное полотно Геоком Д-450: | D607: м2 | E607: =SUM(E599:E606) -> 8638118968886085 | F607: 37.2 | G607: =SUM(G599:G606) -> 1.209336656e+16 | H607: =SUM(H599:H606) -> 1.382099035e+16 | I607: =SUM(I599:I606) -> 1.209336656e+16 | O607: =E607-J607 -> 8638118968886085 | Q607: =G607-L607 -> 1.209336656e+16 | R607: =H607-M607 -> 1.382099035e+16 | S607: =I607-N607 -> 1.209336656e+16
A608: 4 | B608: 4 | C608: Геотекстильное полотно Геоком Д-450: | D608: м2 | E608: =SUM(E600:E607) -> 1.724308235e+16 | F608: 37.2 | G608: =SUM(G600:G607) -> 2.414031529e+16 | H608: =SUM(H600:H607) -> 2.758893176e+16 | I608: =SUM(I600:I607) -> 2.414031529e+16 | O608: =E608-J608 -> 1.724308235e+16 | Q608: =G608-L608 -> 2.414031529e+16 | R608: =H608-M608 -> 2.758893176e+16 | S608: =I608-N608 -> 2.414031529e+16
A609: 4 | B609: 4 | C609: Геотекстильное полотно Геоком Д-450: | D609: м2 | E609: =SUM(E601:E608) -> 3.441762578e+16 | F609: 37.2 | G609: =SUM(G601:G608) -> 4.818467609e+16 | H609: =SUM(H601:H608) -> 5.506820125e+16 | I609: =SUM(I601:I608) -> 4.818467609e+16 | O609: =E609-J609 -> 3.441762578e+16 | Q609: =G609-L609 -> 4.818467609e+16 | R609: =H609-M609 -> 5.506820125e+16 | S609: =I609-N609 -> 4.818467609e+16
A610: 4 | B610: 4 | C610: Геотекстильное полотно Геоком Д-450: | D610: м2 | E610: =SUM(E602:E609) -> 6.869850907e+16 | F610: 37.2 | G610: =SUM(G602:G609) -> 9.61779127e+16 | H610: =SUM(H602:H609) -> 1.099176145e+17 | I610: =SUM(I602:I609) -> 9.61779127e+16 | O610: =E610-J610 -> 6.869850907e+16 | Q610: =G610-L610 -> 9.61779127e+16 | R610: =H610-M610 -> 1.099176145e+17 | S610: =I610-N610 -> 9.61779127e+16
A611: 4 | B611: 4 | C611: Геотекстильное полотно Геоком Д-450: | D611: м2 | E611: =SUM(E603:E610) -> 1.371241796e+17 | F611: 37.2 | G611: =SUM(G603:G610) -> 1.919738514e+17 | H611: =SUM(H603:H610) -> 2.193986873e+17 | I611: =SUM(I603:I610) -> 1.919738514e+17 | O611: =E611-J611 -> 1.371241796e+17 | Q611: =G611-L611 -> 1.919738514e+17 | R611: =H611-M611 -> 2.193986873e+17 | S611: =I611-N611 -> 1.919738514e+17
A612: 4 | B612: 4 | C612: Геотекстильное полотно Геоком Д-450: | D612: м2 | E612: =SUM(E604:E611) -> 2.73703928e+17 | F612: 37.2 | G612: =SUM(G604:G611) -> 3.831854991e+17 | H612: =SUM(H604:H611) -> 4.379262847e+17 | I612: =SUM(I604:I611) -> 3.831854991e+17 | O612: =E612-J612 -> 2.73703928e+17 | Q612: =G612-L612 -> 3.831854991e+17 | R612: =H612-M612 -> 4.379262847e+17 | S612: =I612-N612 -> 3.831854991e+17
A613: 5 | B613: 5 | C613: Горячекатаная арматурная сталь гладкая класса А-I, диаметром 8 мм: | D613: т | E613: =SUM(E608:E612) -> 5.311873247e+17 | F613: 26780.11 | G613: =SUM(G608:G612) -> 7.436622546e+17 | H613: =SUM(H608:H612) -> 8.498997196e+17 | I613: =SUM(I608:I612) -> 7.436622546e+17 | O613: =E613-J613 -> 5.311873247e+17 | Q613: =G613-L613 -> 7.436622546e+17 | R613: =H613-M613 -> 8.498997196e+17 | S613: =I613-N613 -> 7.436622546e+17
A614: 5 | B614: 5 | C614: Горячекатаная арматурная сталь гладкая класса А-I, диаметром 8 мм: | D614: т | E614: =SUM(E609:E613) -> 1.045131567e+18 | F614: 26780.11 | G614: =SUM(G609:G613) -> 1.463184194e+18 | H614: =SUM(H609:H613) -> 1.672210507e+18 | I614: =SUM(I609:I613) -> 1.463184194e+18 | O614: =E614-J614 -> 1.045131567e+18 | Q614: =G614-L614 -> 1.463184194e+18 | R614: =H614-M614 -> 1.672210507e+18 | S614: =I614-N614 -> 1.463184194e+18
A615: 5 | B615: 5 | C615: Горячекатаная арматурная сталь гладкая класса А-I, диаметром 8 мм: | D615: т | E615: =SUM(E610:E614) -> 2.055845508e+18 | F615: 26780.11 | G615: =SUM(G610:G614) -> 2.878183712e+18 | H615: =SUM(H610:H614) -> 3.289352813e+18 | I615: =SUM(I610:I614) -> 2.878183712e+18 | O615: =E615-J615 -> 2.055845508e+18 | Q615: =G615-L615 -> 2.878183712e+18 | R615: =H615-M615 -> 3.289352813e+18 | S615: =I615-N615 -> 2.878183712e+18
A616: 5 | B616: 5 | C616: Горячекатаная арматурная сталь гладкая класса А-I, диаметром 8 мм: | D616: т | E616: =SUM(E611:E615) -> 4.042992508e+18 | F616: 26780.11 | G616: =SUM(G611:G615) -> 5.660189511e+18 | H616: =SUM(H611:H615) -> 6.468788012e+18 | I616: =SUM(I611:I615) -> 5.660189511e+18 | O616: =E616-J616 -> 4.042992508e+18 | Q616: =G616-L616 -> 5.660189511e+18 | R616: =H616-M616 -> 6.468788012e+18 | S616: =I616-N616 -> 5.660189511e+18
A617: 5 | B617: 5 | C617: Горячекатаная арматурная сталь гладкая класса А-I, диаметром 8 мм: | D617: т | E617: =SUM(E612:E616) -> 7.948860836e+18 | F617: 26780.11 | G617: =SUM(G612:G616) -> 1.112840517e+19 | H617: =SUM(H612:H616) -> 1.271817734e+19 | I617: =SUM(I612:I616) -> 1.112840517e+19 | O617: =E617-J617 -> 7.948860836e+18 | Q617: =G617-L617 -> 1.112840517e+19 | R617: =H617-M617 -> 1.271817734e+19 | S617: =I617-N617 -> 1.112840517e+19
A618: 5 | B618: 5 | C618: Горячекатаная арматурная сталь гладкая класса А-I, диаметром 8 мм: | D618: т | E618: =SUM(E613:E617) -> 1.562401774e+19 | F618: 26780.11 | G618: =SUM(G613:G617) -> 2.187362484e+19 | H618: =SUM(H613:H617) -> 2.499842839e+19 | I618: =SUM(I613:I617) -> 2.187362484e+19 | O618: =E618-J618 -> 1.562401774e+19 | Q618: =G618-L618 -> 2.187362484e+19 | R618: =H618-M618 -> 2.499842839e+19 | S618: =I618-N618 -> 2.187362484e+19
A619: 5 | B619: 5 | C619: Горячекатаная арматурная сталь гладкая класса А-I, диаметром 8 мм: | D619: т | E619: =SUM(E614:E618) -> 3.071684816e+19 | F619: 26780.11 | G619: =SUM(G614:G618) -> 4.300358743e+19 | H619: =SUM(H614:H618) -> 4.914695706e+19 | I619: =SUM(I614:I618) -> 4.300358743e+19 | O619: =E619-J619 -> 3.071684816e+19 | Q619: =G619-L619 -> 4.300358743e+19 | R619: =H619-M619 -> 4.914695706e+19 | S619: =I619-N619 -> 4.300358743e+19
A620: 5 | B620: 5 | C620: Горячекатаная арматурная сталь гладкая класса А-I, диаметром 8 мм: | D620: т | E620: =SUM(E615:E619) -> 6.038856476e+19 | F620: 26780.11 | G620: =SUM(G615:G619) -> 8.454399066e+19 | H620: =SUM(H615:H619) -> 9.662170361e+19 | I620: =SUM(I615:I619) -> 8.454399066e+19 | O620: =E620-J620 -> 6.038856476e+19 | Q620: =G620-L620 -> 8.454399066e+19 | R620: =H620-M620 -> 9.662170361e+19 | S620: =I620-N620 -> 8.454399066e+19
A621: 5 | B621: 5 | C621: Горячекатаная арматурная сталь гладкая класса А-I, диаметром 8 мм: | D621: т | E621: =SUM(E616:E620) -> 1.18721284e+20 | F621: 26780.11 | G621: =SUM(G616:G620) -> 1.662097976e+20 | H621: =SUM(H616:H620) -> 1.899540544e+20 | I621: =SUM(I616:I620) -> 1.662097976e+20 | O621: =E621-J621 -> 1.18721284e+20 | Q621: =G621-L621 -> 1.662097976e+20 | R621: =H621-M621 -> 1.899540544e+20 | S621: =I621-N621 -> 1.662097976e+20
A622: 5 | B622: 5 | C622: Горячекатаная арматурная сталь гладкая класса А-I, диаметром 8 мм: | D622: т | E622: =SUM(E617:E621) -> 2.333995755e+20 | F622: 26780.11 | G622: =SUM(G617:G621) -> 3.267594057e+20 | H622: =SUM(H617:H621) -> 3.734393208e+20 | I622: =SUM(I617:I621) -> 3.267594057e+20 | O622: =E622-J622 -> 2.333995755e+20 | Q622: =G622-L622 -> 3.267594057e+20 | R622: =H622-M622 -> 3.734393208e+20 | S622: =I622-N622 -> 3.267594057e+20
A623: 5 | B623: 5 | C623: Горячекатаная арматурная сталь гладкая класса А-I, диаметром 8 мм: | D623: т | E623: =SUM(E618:E622) -> 4.588502902e+20 | F623: 26780.11 | G623: =SUM(G618:G622) -> 6.423904063e+20 | H623: =SUM(H618:H622) -> 7.341604643e+20 | I623: =SUM(I618:I622) -> 6.423904063e+20 | O623: =E623-J623 -> 4.588502902e+20 | Q623: =G623-L623 -> 6.423904063e+20 | R623: =H623-M623 -> 7.341604643e+20 | S623: =I623-N623 -> 6.423904063e+20
A624: 5 | B624: 5 | C624: Горячекатаная арматурная сталь гладкая класса А-I, диаметром 8 мм: | D624: т | E624: =SUM(E619:E623) -> 9.020765626e+20 | F624: 26780.11 | G624: =SUM(G619:G623) -> 1.262907188e+21 | H624: =SUM(H619:H623) -> 1.4433225e+21 | I624: =SUM(I619:I623) -> 1.262907188e+21 | O624: =E624-J624 -> 9.020765626e+20 | Q624: =G624-L624 -> 1.262907188e+21 | R624: =H624-M624 -> 1.4433225e+21 | S624: =I624-N624 -> 1.262907188e+21
A625: 5 | B625: 5 | C625: Горячекатаная арматурная сталь гладкая класса А-I, диаметром 8 мм: | D625: т | E625: =SUM(E620:E624) -> 1.773436277e+21 | F625: 26780.11 | G625: =SUM(G620:G624) -> 2.482810788e+21 | H625: =SUM(H620:H624) -> 2.837498043e+21 | I625: =SUM(I620:I624) -> 2.482810788e+21 | O625: =E625-J625 -> 1.773436277e+21 | Q625: =G625-L625 -> 2.482810788e+21 | R625: =H625-M625 -> 2.837498043e+21 | S625: =I625-N625 -> 2.482810788e+21
A626: 6 | B626: 6 | C626: Грунт минеральный; Песок природный; Сухоройный карьерный: | D626: м3 | E626: =SUM(E578:E625) -> 3.609385937e+21 | F626: 133,06 1315,27 | G626: =SUM(G578:G625) -> 5.053140312e+21 | H626: =SUM(H578:H625) -> 5.775017499e+21 | I626: =SUM(I578:I625) -> 5.053140312e+21 | L626: =K626*J626 -> 0 | M626: =L626*1.179 -> 0 | N626: =M626*1.18 -> 0 | O626: =E626-J626 -> 3.609385937e+21 | Q626: =G626-L626 -> 5.053140312e+21 | R626: =H626-M626 -> 5.775017499e+21 | S626: =I626-N626 -> 5.053140312e+21
A627: 6 | B627: 6 | C627: Грунт минеральный; Песок природный; Сухоройный карьерный: | D627: м3 | E627: =SUM(E579:E626) -> 7.218771874e+21 | F627: 133,06 1315,27 | G627: =SUM(G579:G626) -> 1.010628062e+22 | H627: =SUM(H579:H626) -> 1.1550035e+22 | I627: =SUM(I579:I626) -> 1.010628062e+22 | L627: =K627*J627 -> 0 | M627: =L627*1.179 -> 0 | N627: =M627*1.18 -> 0 | O627: =E627-J627 -> 7.218771874e+21 | Q627: =G627-L627 -> 1.010628062e+22 | R627: =H627-M627 -> 1.1550035e+22 | S627: =I627-N627 -> 1.010628062e+22
A628: 6 | B628: 6 | C628: Грунт минеральный; Песок природный; Сухоройный карьерный: | D628: м3 | E628: =SUM(E580:E627) -> 1.443754375e+22 | F628: 133,06 1315,27 | G628: =SUM(G580:G627) -> 2.021256125e+22 | H628: =SUM(H580:H627) -> 2.310007e+22 | I628: =SUM(I580:I627) -> 2.021256125e+22 | L628: =K628*J628 -> 0 | M628: =L628*1.179 -> 0 | N628: =M628*1.18 -> 0 | O628: =E628-J628 -> 1.443754375e+22 | Q628: =G628-L628 -> 2.021256125e+22 | R628: =H628-M628 -> 2.310007e+22 | S628: =I628-N628 -> 2.021256125e+22
A629: 6 | B629: 6 | C629: Грунт минеральный; Песок природный; Сухоройный карьерный: | D629: м3 | E629: =SUM(E581:E628) -> 2.88750875e+22 | F629: 133,06 1315,27 | G629: =SUM(G581:G628) -> 4.04251225e+22 | H629: =SUM(H581:H628) -> 4.620014e+22 | I629: =SUM(I581:I628) -> 4.04251225e+22 | L629: =K629*J629 -> 0 | M629: =L629*1.179 -> 0 | N629: =M629*1.18 -> 0 | O629: =E629-J629 -> 2.88750875e+22 | Q629: =G629-L629 -> 4.04251225e+22 | R629: =H629-M629 -> 4.620014e+22 | S629: =I629-N629 -> 4.04251225e+22
A630: 6 | B630: 6 | C630: Грунт минеральный; Песок природный; Сухоройный карьерный: | D630: м3 | E630: =SUM(E582:E629) -> 5.775017499e+22 | F630: 133,06 1315,27 | G630: =SUM(G582:G629) -> 8.085024499e+22 | H630: =SUM(H582:H629) -> 9.240027999e+22 | I630: =SUM(I582:I629) -> 8.085024499e+22 | L630: =K630*J630 -> 0 | M630: =L630*1.179 -> 0 | N630: =M630*1.18 -> 0 | O630: =E630-J630 -> 5.775017499e+22 | Q630: =G630-L630 -> 8.085024499e+22 | R630: =H630-M630 -> 9.240027999e+22 | S630: =I630-N630 -> 8.085024499e+22
A631: 6 | B631: 6 | C631: Грунт минеральный; Песок природный; Сухоройный карьерный: | D631: м3 | E631: =SUM(E583:E630) -> 1.1550035e+23 | F631: 133,06 1315,27 | G631: =SUM(G583:G630) -> 1.6170049e+23 | H631: =SUM(H583:H630) -> 1.8480056e+23 | I631: =SUM(I583:I630) -> 1.6170049e+23 | L631: =K631*J631 -> 0 | M631: =L631*1.179 -> 0 | N631: =M631*1.18 -> 0 | O631: =E631-J631 -> 1.1550035e+23 | Q631: =G631-L631 -> 1.6170049e+23 | R631: =H631-M631 -> 1.8480056e+23 | S631: =I631-N631 -> 1.6170049e+23
A632: 6 | B632: 6 | C632: Грунт минеральный; Песок природный; Сухоройный карьерный: | D632: м3 | E632: =SUM(E584:E631) -> 2.310007e+23 | F632: 133,06 1315,27 | G632: =SUM(G584:G631) -> 3.2340098e+23 | H632: =SUM(H584:H631) -> 3.6960112e+23 | I632: =SUM(I584:I631) -> 3.2340098e+23 | L632: =K632*J632 -> 0 | M632: =L632*1.179 -> 0 | N632: =M632*1.18 -> 0 | O632: =E632-J632 -> 2.310007e+23 | Q632: =G632-L632 -> 3.2340098e+23 | R632: =H632-M632 -> 3.6960112e+23 | S632: =I632-N632 -> 3.2340098e+23
A633: 6 | B633: 6 | C633: Грунт минеральный; Песок природный; Сухоройный карьерный: | D633: м3 | E633: =SUM(E585:E632) -> 4.620014e+23 | F633: 133,06 1315,27 | G633: =SUM(G585:G632) -> 6.468019599e+23 | H633: =SUM(H585:H632) -> 7.392022399e+23 | I633: =SUM(I585:I632) -> 6.468019599e+23 | L633: =K633*J633 -> 0 | M633: =L633*1.179 -> 0 | N633: =M633*1.18 -> 0 | O633: =E633-J633 -> 4.620014e+23 | Q633: =G633-L633 -> 6.468019599e+23 | R633: =H633-M633 -> 7.392022399e+23 | S633: =I633-N633 -> 6.468019599e+23
A634: 6 | B634: 6 | C634: Грунт минеральный; Песок природный; Сухоройный карьерный: | D634: м3 | E634: =SUM(E586:E633) -> 9.240027999e+23 | F634: 133,06 1315,27 | G634: =SUM(G586:G633) -> 1.29360392e+24 | H634: =SUM(H586:H633) -> 1.47840448e+24 | I634: =SUM(I586:I633) -> 1.29360392e+24 | L634: =K634*J634 -> 0 | M634: =L634*1.179 -> 0 | N634: =M634*1.18 -> 0 | O634: =E634-J634 -> 9.240027999e+23 | Q634: =G634-L634 -> 1.29360392e+24 | R634: =H634-M634 -> 1.47840448e+24 | S634: =I634-N634 -> 1.29360392e+24
A635: 6 | B635: 6 | C635: Грунт минеральный; Песок природный; Сухоройный карьерный: | D635: м3 | E635: =SUM(E587:E634) -> 1.8480056e+24 | F635: 133,06 1315,27 | G635: =SUM(G587:G634) -> 2.58720784e+24 | H635: =SUM(H587:H634) -> 2.95680896e+24 | I635: =SUM(I587:I634) -> 2.58720784e+24 | L635: =K635*J635 -> 0 | M635: =L635*1.179 -> 0 | N635: =M635*1.18 -> 0 | O635: =E635-J635 -> 1.8480056e+24 | Q635: =G635-L635 -> 2.58720784e+24 | R635: =H635-M635 -> 2.95680896e+24 | S635: =I635-N635 -> 2.58720784e+24
A636: 6 | B636: 6 | C636: Грунт минеральный; Песок природный; Сухоройный карьерный: | D636: м3 | E636: =SUM(E588:E635) -> 3.6960112e+24 | F636: 133,06 1315,27 | G636: =SUM(G588:G635) -> 5.174415679e+24 | H636: =SUM(H588:H635) -> 5.913617919e+24 | I636: =SUM(I588:I635) -> 5.174415679e+24 | L636: =K636*J636 -> 0 | M636: =L636*1.179 -> 0 | N636: =M636*1.18 -> 0 | O636: =E636-J636 -> 3.6960112e+24 | Q636: =G636-L636 -> 5.174415679e+24 | R636: =H636-M636 -> 5.913617919e+24 | S636: =I636-N636 -> 5.174415679e+24
A637: 6 | B637: 6 | C637: Грунт минеральный; Песок природный; Сухоройный карьерный: | D637: м3 | E637: =SUM(E589:E636) -> 7.392022399e+24 | F637: 133,06 1315,27 | G637: =SUM(G589:G636) -> 1.034883136e+25 | H637: =SUM(H589:H636) -> 1.182723584e+25 | I637: =SUM(I589:I636) -> 1.034883136e+25 | L637: =K637*J637 -> 0 | M637: =L637*1.179 -> 0 | N637: =M637*1.18 -> 0 | O637: =E637-J637 -> 7.392022399e+24 | Q637: =G637-L637 -> 1.034883136e+25 | R637: =H637-M637 -> 1.182723584e+25 | S637: =I637-N637 -> 1.034883136e+25
A638: 6 | B638: 6 | C638: Грунт минеральный; Песок природный; Сухоройный карьерный: | D638: м3 | E638: =SUM(E590:E637) -> 1.47840448e+25 | F638: 133,06 1315,27 | G638: =SUM(G590:G637) -> 2.069766272e+25 | H638: =SUM(H590:H637) -> 2.365447168e+25 | I638: =SUM(I590:I637) -> 2.069766272e+25 | L638: =K638*J638 -> 0 | M638: =L638*1.179 -> 0 | N638: =M638*1.18 -> 0 | O638: =E638-J638 -> 1.47840448e+25 | Q638: =G638-L638 -> 2.069766272e+25 | R638: =H638-M638 -> 2.365447168e+25 | S638: =I638-N638 -> 2.069766272e+25
A639: 6 | B639: 6 | C639: Грунт минеральный; Песок природный; Сухоройный карьерный: | D639: м3 | E639: =SUM(E591:E638) -> 2.95680896e+25 | F639: 133,06 1315,27 | G639: =SUM(G591:G638) -> 4.139532544e+25 | H639: =SUM(H591:H638) -> 4.730894336e+25 | I639: =SUM(I591:I638) -> 4.139532544e+25 | L639: =K639*J639 -> 0 | M639: =L639*1.179 -> 0 | N639: =M639*1.18 -> 0 | O639: =E639-J639 -> 2.95680896e+25 | Q639: =G639-L639 -> 4.139532544e+25 | R639: =H639-M639 -> 4.730894336e+25 | S639: =I639-N639 -> 4.139532544e+25
A640: 6 | B640: 6 | C640: Грунт минеральный; Песок природный; Сухоройный карьерный: | D640: м3 | E640: =SUM(E592:E639) -> 5.913617919e+25 | F640: 133,06 1315,27 | G640: =SUM(G592:G639) -> 8.279065087e+25 | H640: =SUM(H592:H639) -> 9.461788671e+25 | I640: =SUM(I592:I639) -> 8.279065087e+25 | L640: =K640*J640 -> 0 | M640: =L640*1.179 -> 0 | N640: =M640*1.18 -> 0 | O640: =E640-J640 -> 5.913617919e+25 | Q640: =G640-L640 -> 8.279065087e+25 | R640: =H640-M640 -> 9.461788671e+25 | S640: =I640-N640 -> 8.279065087e+25
A641: 6 | B641: 6 | C641: Грунт минеральный; Песок природный; Сухоройный карьерный: | D641: м3 | E641: =SUM(E593:E640) -> 1.182723584e+26 | F641: 133,06 1315,27 | G641: =SUM(G593:G640) -> 1.655813017e+26 | H641: =SUM(H593:H640) -> 1.892357734e+26 | I641: =SUM(I593:I640) -> 1.655813017e+26 | L641: =K641*J641 -> 0 | M641: =L641*1.179 -> 0 | N641: =M641*1.18 -> 0 | O641: =E641-J641 -> 1.182723584e+26 | Q641: =G641-L641 -> 1.655813017e+26 | R641: =H641-M641 -> 1.892357734e+26 | S641: =I641-N641 -> 1.655813017e+26
A642: 7 | B642: 7 | C642: Грунтовка на основе эпоксидной смолы (грунт ЭКГ) *{прим.}: | D642: т | E642: =SUM(E641) -> 1.182723584e+26 | F642: 151334.4 | G642: =SUM(G641) -> 1.655813017e+26 | H642: =SUM(H641) -> 1.892357734e+26 | I642: =SUM(I641) -> 1.655813017e+26 | O642: =E642-J642 -> 1.182723584e+26 | Q642: =G642-L642 -> 1.655813017e+26 | R642: =H642-M642 -> 1.892357734e+26 | S642: =I642-N642 -> 1.655813017e+26
A643: 7 | B643: 7 | C643: Грунтовка на основе эпоксидной смолы (грунт ЭКГ) *{прим.}: | D643: т | E643: =SUM(E642) -> 1.182723584e+26 | F643: 151334.4 | G643: =SUM(G642) -> 1.655813017e+26 | H643: =SUM(H642) -> 1.892357734e+26 | I643: =SUM(I642) -> 1.655813017e+26 | O643: =E643-J643 -> 1.182723584e+26 | Q643: =G643-L643 -> 1.655813017e+26 | R643: =H643-M643 -> 1.892357734e+26 | S643: =I643-N643 -> 1.655813017e+26
A644: 7 | B644: 7 | C644: Грунтовка на основе эпоксидной смолы (грунт ЭКГ) *{прим.}: | D644: т | E644: =SUM(E643) -> 1.182723584e+26 | F644: 151334.4 | G644: =SUM(G643) -> 1.655813017e+26 | H644: =SUM(H643) -> 1.892357734e+26 | I644: =SUM(I643) -> 1.655813017e+26 | O644: =E644-J644 -> 1.182723584e+26 | Q644: =G644-L644 -> 1.655813017e+26 | R644: =H644-M644 -> 1.892357734e+26 | S644: =I644-N644 -> 1.655813017e+26
A645: 7 | B645: 7 | C645: Грунтовка на основе эпоксидной смолы (грунт ЭКГ) *{прим.}: | D645: т | E645: =SUM(E644) -> 1.182723584e+26 | F645: 151334.4 | G645: =SUM(G644) -> 1.655813017e+26 | H645: =SUM(H644) -> 1.892357734e+26 | I645: =SUM(I644) -> 1.655813017e+26 | O645: =E645-J645 -> 1.182723584e+26 | Q645: =G645-L645 -> 1.655813017e+26 | R645: =H645-M645 -> 1.892357734e+26 | S645: =I645-N645 -> 1.655813017e+26
A646: 7 | B646: 7 | C646: Грунтовка на основе эпоксидной смолы (грунт ЭКГ) *{прим.}: | D646: т | E646: =SUM(E645) -> 1.182723584e+26 | F646: 151334.4 | G646: =SUM(G645) -> 1.655813017e+26 | H646: =SUM(H645) -> 1.892357734e+26 | I646: =SUM(I645) -> 1.655813017e+26 | O646: =E646-J646 -> 1.182723584e+26 | Q646: =G646-L646 -> 1.655813017e+26 | R646: =H646-M646 -> 1.892357734e+26 | S646: =I646-N646 -> 1.655813017e+26
A647: 7 | B647: 7 | C647: Грунтовка на основе эпоксидной смолы (грунт ЭКГ) *{прим.}: | D647: т | E647: =SUM(E646) -> 1.182723584e+26 | F647: 151334.4 | G647: =SUM(G646) -> 1.655813017e+26 | H647: =SUM(H646) -> 1.892357734e+26 | I647: =SUM(I646) -> 1.655813017e+26 | O647: =E647-J647 -> 1.182723584e+26 | Q647: =G647-L647 -> 1.655813017e+26 | R647: =H647-M647 -> 1.892357734e+26 | S647: =I647-N647 -> 1.655813017e+26
A648: 7 | B648: 7 | C648: Грунтовка на основе эпоксидной смолы (грунт ЭКГ) *{прим.}: | D648: т | E648: =SUM(E647) -> 1.182723584e+26 | F648: 151334.4 | G648: =SUM(G647) -> 1.655813017e+26 | H648: =SUM(H647) -> 1.892357734e+26 | I648: =SUM(I647) -> 1.655813017e+26 | O648: =E648-J648 -> 1.182723584e+26 | Q648: =G648-L648 -> 1.655813017e+26 | R648: =H648-M648 -> 1.892357734e+26 | S648: =I648-N648 -> 1.655813017e+26
A649: 7 | B649: 7 | C649: Грунтовка на основе эпоксидной смолы (грунт ЭКГ) *{прим.}: | D649: т | E649: =SUM(E648) -> 1.182723584e+26 | F649: 151334.4 | G649: =SUM(G648) -> 1.655813017e+26 | H649: =SUM(H648) -> 1.892357734e+26 | I649: =SUM(I648) -> 1.655813017e+26 | O649: =E649-J649 -> 1.182723584e+26 | Q649: =G649-L649 -> 1.655813017e+26 | R649: =H649-M649 -> 1.892357734e+26 | S649: =I649-N649 -> 1.655813017e+26
A650: 7 | B650: 7 | C650: Грунтовка на основе эпоксидной смолы (грунт ЭКГ) *{прим.}: | D650: т | E650: =SUM(E649) -> 1.182723584e+26 | F650: 151334.4 | G650: =SUM(G649) -> 1.655813017e+26 | H650: =SUM(H649) -> 1.892357734e+26 | I650: =SUM(I649) -> 1.655813017e+26 | O650: =E650-J650 -> 1.182723584e+26 | Q650: =G650-L650 -> 1.655813017e+26 | R650: =H650-M650 -> 1.892357734e+26 | S650: =I650-N650 -> 1.655813017e+26
A651: 7 | B651: 7 | C651: Грунтовка на основе эпоксидной смолы (грунт ЭКГ) *{прим.}: | D651: т | E651: =SUM(E650) -> 1.182723584e+26 | F651: 151334.4 | G651: =SUM(G650) -> 1.655813017e+26 | H651: =SUM(H650) -> 1.892357734e+26 | I651: =SUM(I650) -> 1.655813017e+26 | O651: =E651-J651 -> 1.182723584e+26 | Q651: =G651-L651 -> 1.655813017e+26 | R651: =H651-M651 -> 1.892357734e+26 | S651: =I651-N651 -> 1.655813017e+26
A652: 7 | B652: 7 | C652: Грунтовка на основе эпоксидной смолы (грунт ЭКГ) *{прим.}: | D652: т | E652: =SUM(E651) -> 1.182723584e+26 | F652: 151334.4 | G652: =SUM(G651) -> 1.655813017e+26 | H652: =SUM(H651) -> 1.892357734e+26 | I652: =SUM(I651) -> 1.655813017e+26 | O652: =E652-J652 -> 1.182723584e+26 | Q652: =G652-L652 -> 1.655813017e+26 | R652: =H652-M652 -> 1.892357734e+26 | S652: =I652-N652 -> 1.655813017e+26
A653: 7 | B653: 7 | C653: Грунтовка на основе эпоксидной смолы (грунт ЭКГ) *{прим.}: | D653: т | E653: =SUM(E652) -> 1.182723584e+26 | F653: 151334.4 | G653: =SUM(G652) -> 1.655813017e+26 | H653: =SUM(H652) -> 1.892357734e+26 | I653: =SUM(I652) -> 1.655813017e+26 | O653: =E653-J653 -> 1.182723584e+26 | Q653: =G653-L653 -> 1.655813017e+26 | R653: =H653-M653 -> 1.892357734e+26 | S653: =I653-N653 -> 1.655813017e+26
A654: 7 | B654: 7 | C654: Грунтовка на основе эпоксидной смолы (грунт ЭКГ) *{прим.}: | D654: т | E654: =SUM(E653) -> 1.182723584e+26 | F654: 151334.4 | G654: =SUM(G653) -> 1.655813017e+26 | H654: =SUM(H653) -> 1.892357734e+26 | I654: =SUM(I653) -> 1.655813017e+26 | O654: =E654-J654 -> 1.182723584e+26 | Q654: =G654-L654 -> 1.655813017e+26 | R654: =H654-M654 -> 1.892357734e+26 | S654: =I654-N654 -> 1.655813017e+26
A655: 8 | B655: 8 | C655: Крепежные детали (анкера): | D655: т | E655: =SUM(E650:E654) -> 5.913617919e+26 | F655: 40678.57 | G655: =SUM(G650:G654) -> 8.279065087e+26 | H655: =SUM(H650:H654) -> 9.461788671e+26 | I655: =SUM(I650:I654) -> 8.279065087e+26 | O655: =E655-J655 -> 5.913617919e+26 | Q655: =G655-L655 -> 8.279065087e+26 | R655: =H655-M655 -> 9.461788671e+26 | S655: =I655-N655 -> 8.279065087e+26
A656: 8 | B656: 8 | C656: Крепежные детали (анкера): | D656: т | E656: =SUM(E651:E655) -> 1.064451225e+27 | F656: 40678.57 | G656: =SUM(G651:G655) -> 1.490231716e+27 | H656: =SUM(H651:H655) -> 1.703121961e+27 | I656: =SUM(I651:I655) -> 1.490231716e+27 | O656: =E656-J656 -> 1.064451225e+27 | Q656: =G656-L656 -> 1.490231716e+27 | R656: =H656-M656 -> 1.703121961e+27 | S656: =I656-N656 -> 1.490231716e+27
A657: 8 | B657: 8 | C657: Крепежные детали (анкера): | D657: т | E657: =SUM(E652:E656) -> 2.010630093e+27 | F657: 40678.57 | G657: =SUM(G652:G656) -> 2.81488213e+27 | H657: =SUM(H652:H656) -> 3.217008148e+27 | I657: =SUM(I652:I656) -> 2.81488213e+27 | O657: =E657-J657 -> 2.010630093e+27 | Q657: =G657-L657 -> 2.81488213e+27 | R657: =H657-M657 -> 3.217008148e+27 | S657: =I657-N657 -> 2.81488213e+27
A658: 8 | B658: 8 | C658: Крепежные детали (анкера): | D658: т | E658: =SUM(E653:E657) -> 3.902987827e+27 | F658: 40678.57 | G658: =SUM(G653:G657) -> 5.464182958e+27 | H658: =SUM(H653:H657) -> 6.244780523e+27 | I658: =SUM(I653:I657) -> 5.464182958e+27 | O658: =E658-J658 -> 3.902987827e+27 | Q658: =G658-L658 -> 5.464182958e+27 | R658: =H658-M658 -> 6.244780523e+27 | S658: =I658-N658 -> 5.464182958e+27
A659: 8 | B659: 8 | C659: Крепежные детали (анкера): | D659: т | E659: =SUM(E654:E658) -> 7.687703295e+27 | F659: 40678.57 | G659: =SUM(G654:G658) -> 1.076278461e+28 | H659: =SUM(H654:H658) -> 1.230032527e+28 | I659: =SUM(I654:I658) -> 1.076278461e+28 | O659: =E659-J659 -> 7.687703295e+27 | Q659: =G659-L659 -> 1.076278461e+28 | R659: =H659-M659 -> 1.230032527e+28 | S659: =I659-N659 -> 1.076278461e+28
A660: 8 | B660: 8 | C660: Крепежные детали (анкера): | D660: т | E660: =SUM(E655:E659) -> 1.525713423e+28 | F660: 40678.57 | G660: =SUM(G655:G659) -> 2.135998792e+28 | H660: =SUM(H655:H659) -> 2.441141477e+28 | I660: =SUM(I655:I659) -> 2.135998792e+28 | O660: =E660-J660 -> 1.525713423e+28 | Q660: =G660-L660 -> 2.135998792e+28 | R660: =H660-M660 -> 2.441141477e+28 | S660: =I660-N660 -> 2.135998792e+28
A661: 8 | B661: 8 | C661: Крепежные детали (анкера): | D661: т | E661: =SUM(E656:E660) -> 2.992290667e+28 | F661: 40678.57 | G661: =SUM(G656:G660) -> 4.189206934e+28 | H661: =SUM(H656:H660) -> 4.787665068e+28 | I661: =SUM(I656:I660) -> 4.189206934e+28 | O661: =E661-J661 -> 2.992290667e+28 | Q661: =G661-L661 -> 4.189206934e+28 | R661: =H661-M661 -> 4.787665068e+28 | S661: =I661-N661 -> 4.189206934e+28
A662: 8 | B662: 8 | C662: Крепежные детали (анкера): | D662: т | E662: =SUM(E657:E661) -> 5.878136212e+28 | F662: 40678.57 | G662: =SUM(G657:G661) -> 8.229390697e+28 | H662: =SUM(H657:H661) -> 9.405017939e+28 | I662: =SUM(I657:I661) -> 8.229390697e+28 | O662: =E662-J662 -> 5.878136212e+28 | Q662: =G662-L662 -> 8.229390697e+28 | R662: =H662-M662 -> 9.405017939e+28 | S662: =I662-N662 -> 8.229390697e+28
A663: 8 | B663: 8 | C663: Крепежные детали (анкера): | D663: т | E663: =SUM(E658:E662) -> 1.155520941e+29 | F663: 40678.57 | G663: =SUM(G658:G662) -> 1.617729318e+29 | H663: =SUM(H658:H662) -> 1.848833506e+29 | I663: =SUM(I658:I662) -> 1.617729318e+29 | O663: =E663-J663 -> 1.155520941e+29 | Q663: =G663-L663 -> 1.617729318e+29 | R663: =H663-M663 -> 1.848833506e+29 | S663: =I663-N663 -> 1.617729318e+29
A664: 8 | B664: 8 | C664: Крепежные детали (анкера): | D664: т | E664: =SUM(E659:E663) -> 2.272012005e+29 | F664: 40678.57 | G664: =SUM(G659:G663) -> 3.180816806e+29 | H664: =SUM(H659:H663) -> 3.635219207e+29 | I664: =SUM(I659:I663) -> 3.180816806e+29 | O664: =E664-J664 -> 2.272012005e+29 | Q664: =G664-L664 -> 3.180816806e+29 | R664: =H664-M664 -> 3.635219207e+29 | S664: =I664-N664 -> 3.180816806e+29
A665: 8 | B665: 8 | C665: Крепежные детали (анкера): | D665: т | E665: =SUM(E660:E664) -> 4.467146976e+29 | F665: 40678.57 | G665: =SUM(G660:G664) -> 6.254005767e+29 | H665: =SUM(H660:H664) -> 7.147435162e+29 | I665: =SUM(I660:I664) -> 6.254005767e+29 | O665: =E665-J665 -> 4.467146976e+29 | Q665: =G665-L665 -> 6.254005767e+29 | R665: =H665-M665 -> 7.147435162e+29 | S665: =I665-N665 -> 6.254005767e+29
A666: 8 | B666: 8 | C666: Крепежные детали (анкера): | D666: т | E666: =SUM(E661:E665) -> 8.78172261e+29 | F666: 40678.57 | G666: =SUM(G661:G665) -> 1.229441165e+30 | H666: =SUM(H661:H665) -> 1.405075618e+30 | I666: =SUM(I661:I665) -> 1.229441165e+30 | O666: =E666-J666 -> 8.78172261e+29 | Q666: =G666-L666 -> 1.229441165e+30 | R666: =H666-M666 -> 1.405075618e+30 | S666: =I666-N666 -> 1.229441165e+30
A667: 8 | B667: 8 | C667: Крепежные детали (анкера): | D667: т | E667: =SUM(E662:E666) -> 1.726421615e+30 | F667: 40678.57 | G667: =SUM(G662:G666) -> 2.416990262e+30 | H667: =SUM(H662:H666) -> 2.762274585e+30 | I667: =SUM(I662:I666) -> 2.416990262e+30 | O667: =E667-J667 -> 1.726421615e+30 | Q667: =G667-L667 -> 2.416990262e+30 | R667: =H667-M667 -> 2.762274585e+30 | S667: =I667-N667 -> 2.416990262e+30
A668: 9 | B668: 9 | C668: Мат трехмерный МТ 15/350 (300) ЭКСТРАМАТ,СТО 00205009-002-2006: | D668: м2 | E668: =SUM(E663:E667) -> 3.394061869e+30 | F668: 152.05 | G668: =SUM(G663:G667) -> 4.751686616e+30 | H668: =SUM(H663:H667) -> 5.43049899e+30 | I668: =SUM(I663:I667) -> 4.751686616e+30 | O668: =E668-J668 -> 3.394061869e+30 | Q668: =G668-L668 -> 4.751686616e+30 | R668: =H668-M668 -> 5.43049899e+30 | S668: =I668-N668 -> 4.751686616e+30
A669: 9 | B669: 9 | C669: Мат трехмерный МТ 15/350 (300) ЭКСТРАМАТ,СТО 00205009-002-2006: | D669: м2 | E669: =SUM(E664:E668) -> 6.672571643e+30 | F669: 152.05 | G669: =SUM(G664:G668) -> 9.3416003e+30 | H669: =SUM(H664:H668) -> 1.067611463e+31 | I669: =SUM(I664:I668) -> 9.3416003e+30 | O669: =E669-J669 -> 6.672571643e+30 | Q669: =G669-L669 -> 9.3416003e+30 | R669: =H669-M669 -> 1.067611463e+31 | S669: =I669-N669 -> 9.3416003e+30
A670: 9 | B670: 9 | C670: Мат трехмерный МТ 15/350 (300) ЭКСТРАМАТ,СТО 00205009-002-2006: | D670: м2 | E670: =SUM(E665:E669) -> 1.311794209e+31 | F670: 152.05 | G670: =SUM(G665:G669) -> 1.836511892e+31 | H670: =SUM(H665:H669) -> 2.098870734e+31 | I670: =SUM(I665:I669) -> 1.836511892e+31 | O670: =E670-J670 -> 1.311794209e+31 | Q670: =G670-L670 -> 1.836511892e+31 | R670: =H670-M670 -> 2.098870734e+31 | S670: =I670-N670 -> 1.836511892e+31
A671: 9 | B671: 9 | C671: Мат трехмерный МТ 15/350 (300) ЭКСТРАМАТ,СТО 00205009-002-2006: | D671: м2 | E671: =SUM(E666:E670) -> 2.578916947e+31 | F671: 152.05 | G671: =SUM(G666:G670) -> 3.610483726e+31 | H671: =SUM(H666:H670) -> 4.126267116e+31 | I671: =SUM(I666:I670) -> 3.610483726e+31 | O671: =E671-J671 -> 2.578916947e+31 | Q671: =G671-L671 -> 3.610483726e+31 | R671: =H671-M671 -> 4.126267116e+31 | S671: =I671-N671 -> 3.610483726e+31
A672: 9 | B672: 9 | C672: Мат трехмерный МТ 15/350 (300) ЭКСТРАМАТ,СТО 00205009-002-2006: | D672: м2 | E672: =SUM(E667:E671) -> 5.070016669e+31 | F672: 152.05 | G672: =SUM(G667:G671) -> 7.098023336e+31 | H672: =SUM(H667:H671) -> 8.11202667e+31 | I672: =SUM(I667:I671) -> 7.098023336e+31 | O672: =E672-J672 -> 5.070016669e+31 | Q672: =G672-L672 -> 7.098023336e+31 | R672: =H672-M672 -> 8.11202667e+31 | S672: =I672-N672 -> 7.098023336e+31
A673: 9 | B673: 9 | C673: Мат трехмерный МТ 15/350 (300) ЭКСТРАМАТ,СТО 00205009-002-2006: | D673: м2 | E673: =SUM(E668:E672) -> 9.967391176e+31 | F673: 152.05 | G673: =SUM(G668:G672) -> 1.395434765e+32 | H673: =SUM(H668:H672) -> 1.594782588e+32 | I673: =SUM(I668:I672) -> 1.395434765e+32 | O673: =E673-J673 -> 9.967391176e+31 | Q673: =G673-L673 -> 1.395434765e+32 | R673: =H673-M673 -> 1.594782588e+32 | S673: =I673-N673 -> 1.395434765e+32
A674: 9 | B674: 9 | C674: Мат трехмерный МТ 15/350 (300) ЭКСТРАМАТ,СТО 00205009-002-2006: | D674: м2 | E674: =SUM(E669:E673) -> 1.959537616e+32 | F674: 152.05 | G674: =SUM(G669:G673) -> 2.743352663e+32 | H674: =SUM(H669:H673) -> 3.135260186e+32 | I674: =SUM(I669:I673) -> 2.743352663e+32 | O674: =E674-J674 -> 1.959537616e+32 | Q674: =G674-L674 -> 2.743352663e+32 | R674: =H674-M674 -> 3.135260186e+32 | S674: =I674-N674 -> 2.743352663e+32
A675: 9 | B675: 9 | C675: Мат трехмерный МТ 15/350 (300) ЭКСТРАМАТ,СТО 00205009-002-2006: | D675: м2 | E675: =SUM(E670:E674) -> 3.852349517e+32 | F675: 152.05 | G675: =SUM(G670:G674) -> 5.393289323e+32 | H675: =SUM(H670:H674) -> 6.163759226e+32 | I675: =SUM(I670:I674) -> 5.393289323e+32 | O675: =E675-J675 -> 3.852349517e+32 | Q675: =G675-L675 -> 5.393289323e+32 | R675: =H675-M675 -> 6.163759226e+32 | S675: =I675-N675 -> 5.393289323e+32
A676: 9 | B676: 9 | C676: Мат трехмерный МТ 15/350 (300) ЭКСТРАМАТ,СТО 00205009-002-2006: | D676: м2 | E676: =SUM(E671:E675) -> 7.573519612e+32 | F676: 152.05 | G676: =SUM(G671:G675) -> 1.060292746e+33 | H676: =SUM(H671:H675) -> 1.211763138e+33 | I676: =SUM(I671:I675) -> 1.060292746e+33 | O676: =E676-J676 -> 7.573519612e+32 | Q676: =G676-L676 -> 1.060292746e+33 | R676: =H676-M676 -> 1.211763138e+33 | S676: =I676-N676 -> 1.060292746e+33
A677: 9 | B677: 9 | C677: Мат трехмерный МТ 15/350 (300) ЭКСТРАМАТ,СТО 00205009-002-2006: | D677: м2 | E677: =SUM(E672:E676) -> 1.488914753e+33 | F677: 152.05 | G677: =SUM(G672:G676) -> 2.084480654e+33 | H677: =SUM(H672:H676) -> 2.382263605e+33 | I677: =SUM(I672:I676) -> 2.084480654e+33 | O677: =E677-J677 -> 1.488914753e+33 | Q677: =G677-L677 -> 2.084480654e+33 | R677: =H677-M677 -> 2.382263605e+33 | S677: =I677-N677 -> 2.084480654e+33
A678: 9 | B678: 9 | C678: Мат трехмерный МТ 15/350 (300) ЭКСТРАМАТ,СТО 00205009-002-2006: | D678: м2 | E678: =SUM(E673:E677) -> 2.927129339e+33 | F678: 152.05 | G678: =SUM(G673:G677) -> 4.097981075e+33 | H678: =SUM(H673:H677) -> 4.683406943e+33 | I678: =SUM(I673:I677) -> 4.097981075e+33 | O678: =E678-J678 -> 2.927129339e+33 | Q678: =G678-L678 -> 4.097981075e+33 | R678: =H678-M678 -> 4.683406943e+33 | S678: =I678-N678 -> 4.097981075e+33
A679: 9 | B679: 9 | C679: Мат трехмерный МТ 15/350 (300) ЭКСТРАМАТ,СТО 00205009-002-2006: | D679: м2 | E679: =SUM(E674:E678) -> 5.754584767e+33 | F679: 152.05 | G679: =SUM(G674:G678) -> 8.056418673e+33 | H679: =SUM(H674:H678) -> 9.207335627e+33 | I679: =SUM(I674:I678) -> 8.056418673e+33 | O679: =E679-J679 -> 5.754584767e+33 | Q679: =G679-L679 -> 8.056418673e+33 | R679: =H679-M679 -> 9.207335627e+33 | S679: =I679-N679 -> 8.056418673e+33
A680: 9 | B680: 9 | C680: Мат трехмерный МТ 15/350 (300) ЭКСТРАМАТ,СТО 00205009-002-2006: | D680: м2 | E680: =SUM(E675:E679) -> 1.131321577e+34 | F680: 152.05 | G680: =SUM(G675:G679) -> 1.583850208e+34 | H680: =SUM(H675:H679) -> 1.810114524e+34 | I680: =SUM(I675:I679) -> 1.583850208e+34 | O680: =E680-J680 -> 1.131321577e+34 | Q680: =G680-L680 -> 1.583850208e+34 | R680: =H680-M680 -> 1.810114524e+34 | S680: =I680-N680 -> 1.583850208e+34
A681: 10 | B681: 10 | C681: Трубы стальные электросварные со спиральным швом 1420(15)мм | D681: т | E681: =SUM(E675:E680) -> 2.262643154e+34 | F681: 19504.38 | G681: =SUM(G675:G680) -> 3.167700416e+34 | H681: =SUM(H675:H680) -> 3.620229047e+34 | I681: =SUM(I675:I680) -> 3.167700416e+34 | L681: =K681*J681 -> 0 | M681: =L681*1.179 -> 0 | N681: =M681*1.18 -> 0 | O681: =E681-J681 -> 2.262643154e+34 | Q681: =G681-L681 -> 3.167700416e+34 | R681: =H681-M681 -> 3.620229047e+34 | S681: =I681-N681 -> 3.167700416e+34
A682: 10 | B682: 10 | C682: Трубы стальные электросварные со спиральным швом 1420(15)мм | D682: т | E682: =SUM(E676:E681) -> 4.486762814e+34 | F682: 19504.38 | G682: =SUM(G676:G681) -> 6.281467939e+34 | H682: =SUM(H676:H681) -> 7.178820502e+34 | I682: =SUM(I676:I681) -> 6.281467939e+34 | L682: =K682*J682 -> 0 | M682: =L682*1.179 -> 0 | N682: =M682*1.18 -> 0 | O682: =E682-J682 -> 4.486762814e+34 | Q682: =G682-L682 -> 6.281467939e+34 | R682: =H682-M682 -> 7.178820502e+34 | S682: =I682-N682 -> 6.281467939e+34
A683: 10 | B683: 10 | C683: Трубы стальные электросварные со спиральным швом 1420(15)мм | D683: т | E683: =SUM(E677:E682) -> 8.897790431e+34 | F683: 19504.38 | G683: =SUM(G677:G682) -> 1.24569066e+35 | H683: =SUM(H677:H682) -> 1.423646469e+35 | I683: =SUM(I677:I682) -> 1.24569066e+35 | L683: =K683*J683 -> 0 | M683: =L683*1.179 -> 0 | N683: =M683*1.18 -> 0 | O683: =E683-J683 -> 8.897790431e+34 | Q683: =G683-L683 -> 1.24569066e+35 | R683: =H683-M683 -> 1.423646469e+35 | S683: =I683-N683 -> 1.24569066e+35
A684: 10 | B684: 10 | C684: Трубы стальные электросварные со спиральным швом 1420(15)мм | D684: т | E684: =SUM(E678:E683) -> 1.764668939e+35 | F684: 19504.38 | G684: =SUM(G678:G683) -> 2.470536514e+35 | H684: =SUM(H678:H683) -> 2.823470302e+35 | I684: =SUM(I678:I683) -> 2.470536514e+35 | L684: =K684*J684 -> 0 | M684: =L684*1.179 -> 0 | N684: =M684*1.18 -> 0 | O684: =E684-J684 -> 1.764668939e+35 | Q684: =G684-L684 -> 2.470536514e+35 | R684: =H684-M684 -> 2.823470302e+35 | S684: =I684-N684 -> 2.470536514e+35
A685: 10 | B685: 10 | C685: Трубы стальные электросварные со спиральным швом 1420(15)мм | D685: т | E685: =SUM(E679:E684) -> 3.500066584e+35 | F685: 19504.38 | G685: =SUM(G679:G684) -> 4.900093218e+35 | H685: =SUM(H679:H684) -> 5.600106534e+35 | I685: =SUM(I679:I684) -> 4.900093218e+35 | L685: =K685*J685 -> 0 | M685: =L685*1.179 -> 0 | N685: =M685*1.18 -> 0 | O685: =E685-J685 -> 3.500066584e+35 | Q685: =G685-L685 -> 4.900093218e+35 | R685: =H685-M685 -> 5.600106534e+35 | S685: =I685-N685 -> 4.900093218e+35
A686: 10 | B686: 10 | C686: Трубы стальные электросварные со спиральным швом 1420(15)мм | D686: т | E686: =SUM(E680:E685) -> 6.94258732e+35 | F686: 19504.38 | G686: =SUM(G680:G685) -> 9.719622248e+35 | H686: =SUM(H680:H685) -> 1.110813971e+36 | I686: =SUM(I680:I685) -> 9.719622248e+35 | L686: =K686*J686 -> 0 | M686: =L686*1.179 -> 0 | N686: =M686*1.18 -> 0 | O686: =E686-J686 -> 6.94258732e+35 | Q686: =G686-L686 -> 9.719622248e+35 | R686: =H686-M686 -> 1.110813971e+36 | S686: =I686-N686 -> 9.719622248e+35
A687: 10 | B687: 10 | C687: Трубы стальные электросварные со спиральным швом 1420(15)мм | D687: т | E687: =SUM(E681:E686) -> 1.377204248e+36 | F687: 19504.38 | G687: =SUM(G681:G686) -> 1.928085948e+36 | H687: =SUM(H681:H686) -> 2.203526797e+36 | I687: =SUM(I681:I686) -> 1.928085948e+36 | L687: =K687*J687 -> 0 | M687: =L687*1.179 -> 0 | N687: =M687*1.18 -> 0 | O687: =E687-J687 -> 1.377204248e+36 | Q687: =G687-L687 -> 1.928085948e+36 | R687: =H687-M687 -> 2.203526797e+36 | S687: =I687-N687 -> 1.928085948e+36
A688: 10 | B688: 10 | C688: Трубы стальные электросварные со спиральным швом 1420(15)мм | D688: т | E688: =SUM(E682:E687) -> 2.731782065e+36 | F688: 19504.38 | G688: =SUM(G682:G687) -> 3.824494891e+36 | H688: =SUM(H682:H687) -> 4.370851304e+36 | I688: =SUM(I682:I687) -> 3.824494891e+36 | L688: =K688*J688 -> 0 | M688: =L688*1.179 -> 0 | N688: =M688*1.18 -> 0 | O688: =E688-J688 -> 2.731782065e+36 | Q688: =G688-L688 -> 3.824494891e+36 | R688: =H688-M688 -> 4.370851304e+36 | S688: =I688-N688 -> 3.824494891e+36
A689: 10 | B689: 10 | C689: Трубы стальные электросварные со спиральным швом 1420(15)мм | D689: т | E689: =SUM(E683:E688) -> 5.418696502e+36 | F689: 19504.38 | G689: =SUM(G683:G688) -> 7.586175103e+36 | H689: =SUM(H683:H688) -> 8.669914403e+36 | I689: =SUM(I683:I688) -> 7.586175103e+36 | L689: =K689*J689 -> 0 | M689: =L689*1.179 -> 0 | N689: =M689*1.18 -> 0 | O689: =E689-J689 -> 5.418696502e+36 | Q689: =G689-L689 -> 7.586175103e+36 | R689: =H689-M689 -> 8.669914403e+36 | S689: =I689-N689 -> 7.586175103e+36
A690: 10 | B690: 10 | C690: Трубы стальные электросварные со спиральным швом 1420(15)мм | D690: т | E690: =SUM(E684:E689) -> 1.07484151e+37 | F690: 19504.38 | G690: =SUM(G684:G689) -> 1.504778114e+37 | H690: =SUM(H684:H689) -> 1.719746416e+37 | I690: =SUM(I684:I689) -> 1.504778114e+37 | L690: =K690*J690 -> 0 | M690: =L690*1.179 -> 0 | N690: =M690*1.18 -> 0 | O690: =E690-J690 -> 1.07484151e+37 | Q690: =G690-L690 -> 1.504778114e+37 | R690: =H690-M690 -> 1.719746416e+37 | S690: =I690-N690 -> 1.504778114e+37
A691: 10 | B691: 10 | C691: Трубы стальные электросварные со спиральным швом 1420(15)мм | D691: т | E691: =SUM(E685:E690) -> 2.132036331e+37 | F691: 19504.38 | G691: =SUM(G685:G690) -> 2.984850863e+37 | H691: =SUM(H685:H690) -> 3.411258129e+37 | I691: =SUM(I685:I690) -> 2.984850863e+37 | L691: =K691*J691 -> 0 | M691: =L691*1.179 -> 0 | N691: =M691*1.18 -> 0 | O691: =E691-J691 -> 2.132036331e+37 | Q691: =G691-L691 -> 2.984850863e+37 | R691: =H691-M691 -> 3.411258129e+37 | S691: =I691-N691 -> 2.984850863e+37
A692: 10 | B692: 10 | C692: Трубы стальные электросварные со спиральным швом 1420(15)мм | D692: т | E692: =SUM(E686:E691) -> 4.229071995e+37 | F692: 19504.38 | G692: =SUM(G686:G691) -> 5.920700793e+37 | H692: =SUM(H686:H691) -> 6.766515192e+37 | I692: =SUM(I686:I691) -> 5.920700793e+37 | L692: =K692*J692 -> 0 | M692: =L692*1.179 -> 0 | N692: =M692*1.18 -> 0 | O692: =E692-J692 -> 4.229071995e+37 | Q692: =G692-L692 -> 5.920700793e+37 | R692: =H692-M692 -> 6.766515192e+37 | S692: =I692-N692 -> 5.920700793e+37
A693: 10 | B693: 10 | C693: Трубы стальные электросварные со спиральным швом 1420(15)мм | D693: т | E693: =SUM(E687:E692) -> 8.388718117e+37 | F693: 19504.38 | G693: =SUM(G687:G692) -> 1.174420536e+38 | H693: =SUM(H687:H692) -> 1.342194899e+38 | I693: =SUM(I687:I692) -> 1.174420536e+38 | L693: =K693*J693 -> 0 | M693: =L693*1.179 -> 0 | N693: =M693*1.18 -> 0 | O693: =E693-J693 -> 8.388718117e+37 | Q693: =G693-L693 -> 1.174420536e+38 | R693: =H693-M693 -> 1.342194899e+38 | S693: =I693-N693 -> 1.174420536e+38
A694: 10 | B694: 10 | C694: Трубы стальные электросварные со спиральным швом 1420(15)мм | D694: т | E694: =SUM(E688:E693) -> 1.663971581e+38 | F694: 19504.38 | G694: =SUM(G688:G693) -> 2.329560213e+38 | H694: =SUM(H688:H693) -> 2.66235453e+38 | I694: =SUM(I688:I693) -> 2.329560213e+38 | L694: =K694*J694 -> 0 | M694: =L694*1.179 -> 0 | N694: =M694*1.18 -> 0 | O694: =E694-J694 -> 1.663971581e+38 | Q694: =G694-L694 -> 2.329560213e+38 | R694: =H694-M694 -> 2.66235453e+38 | S694: =I694-N694 -> 2.329560213e+38
A695: 10 | B695: 10 | C695: Трубы стальные электросварные со спиральным швом 1420(15)мм | D695: т | E695: =SUM(E689:E694) -> 3.300625341e+38 | F695: 19504.38 | G695: =SUM(G689:G694) -> 4.620875478e+38 | H695: =SUM(H689:H694) -> 5.281000546e+38 | I695: =SUM(I689:I694) -> 4.620875478e+38 | L695: =K695*J695 -> 0 | M695: =L695*1.179 -> 0 | N695: =M695*1.18 -> 0 | O695: =E695-J695 -> 3.300625341e+38 | Q695: =G695-L695 -> 4.620875478e+38 | R695: =H695-M695 -> 5.281000546e+38 | S695: =I695-N695 -> 4.620875478e+38
A696: 10 | B696: 10 | C696: Трубы стальные электросварные со спиральным швом 1420(15)мм | D696: т | E696: =SUM(E690:E695) -> 6.547063717e+38 | F696: 19504.38 | G696: =SUM(G690:G695) -> 9.165889204e+38 | H696: =SUM(H690:H695) -> 1.047530195e+39 | I696: =SUM(I690:I695) -> 9.165889204e+38 | L696: =K696*J696 -> 0 | M696: =L696*1.179 -> 0 | N696: =M696*1.18 -> 0 | O696: =E696-J696 -> 6.547063717e+38 | Q696: =G696-L696 -> 9.165889204e+38 | R696: =H696-M696 -> 1.047530195e+39 | S696: =I696-N696 -> 9.165889204e+38
A697: 11 | B697: 11 | C697: МГК с гофром (труба) 130х32,5, толщина металла 3,0 мм, диаметром 2,5м *{прим.} | D697: т | E697: =SUM(E695:E696) -> 9.847689059e+38 | F697: 72432.21 | G697: =SUM(G695:G696) -> 1.378676468e+39 | H697: =SUM(H695:H696) -> 1.575630249e+39 | I697: =SUM(I695:I696) -> 1.378676468e+39 | L697: =K697*J697 -> 0 | M697: =L697*1.179 -> 0 | N697: =M697*1.18 -> 0 | O697: =E697-J697 -> 9.847689059e+38 | Q697: =G697-L697 -> 1.378676468e+39 | R697: =H697-M697 -> 1.575630249e+39 | S697: =I697-N697 -> 1.378676468e+39
A698: 11 | B698: 11 | C698: МГК с гофром (труба) 130х32,5, толщина металла 3,0 мм, диаметром 2,5м *{прим.} | D698: т | E698: =SUM(E696:E697) -> 1.639475278e+39 | F698: 72432.21 | G698: =SUM(G696:G697) -> 2.295265389e+39 | H698: =SUM(H696:H697) -> 2.623160444e+39 | I698: =SUM(I696:I697) -> 2.295265389e+39 | L698: =K698*J698 -> 0 | M698: =L698*1.179 -> 0 | N698: =M698*1.18 -> 0 | O698: =E698-J698 -> 1.639475278e+39 | Q698: =G698-L698 -> 2.295265389e+39 | R698: =H698-M698 -> 2.623160444e+39 | S698: =I698-N698 -> 2.295265389e+39
A699: 11 | B699: 11 | C699: МГК с гофром (труба) 130х32,5, толщина металла 3,0 мм, диаметром 2,5м *{прим.} | D699: т | E699: =SUM(E697:E698) -> 2.624244183e+39 | F699: 72432.21 | G699: =SUM(G697:G698) -> 3.673941857e+39 | H699: =SUM(H697:H698) -> 4.198790694e+39 | I699: =SUM(I697:I698) -> 3.673941857e+39 | L699: =K699*J699 -> 0 | M699: =L699*1.179 -> 0 | N699: =M699*1.18 -> 0 | O699: =E699-J699 -> 2.624244183e+39 | Q699: =G699-L699 -> 3.673941857e+39 | R699: =H699-M699 -> 4.198790694e+39 | S699: =I699-N699 -> 3.673941857e+39
A700: 11 | B700: 11 | C700: МГК с гофром (труба) 130х32,5, толщина металла 3,0 мм, диаметром 2,5м *{прим.} | D700: т | E700: =SUM(E698:E699) -> 4.263719461e+39 | F700: 72432.21 | G700: =SUM(G698:G699) -> 5.969207246e+39 | H700: =SUM(H698:H699) -> 6.821951138e+39 | I700: =SUM(I698:I699) -> 5.969207246e+39 | L700: =K700*J700 -> 0 | M700: =L700*1.179 -> 0 | N700: =M700*1.18 -> 0 | O700: =E700-J700 -> 4.263719461e+39 | Q700: =G700-L700 -> 5.969207246e+39 | R700: =H700-M700 -> 6.821951138e+39 | S700: =I700-N700 -> 5.969207246e+39
A701: 11 | B701: 11 | C701: МГК с гофром (труба) 130х32,5, толщина металла 3,0 мм, диаметром 2,5м *{прим.} | D701: т | E701: =SUM(E699:E700) -> 6.887963645e+39 | F701: 72432.21 | G701: =SUM(G699:G700) -> 9.643149102e+39 | H701: =SUM(H699:H700) -> 1.102074183e+40 | I701: =SUM(I699:I700) -> 9.643149102e+39 | L701: =K701*J701 -> 0 | M701: =L701*1.179 -> 0 | N701: =M701*1.18 -> 0 | O701: =E701-J701 -> 6.887963645e+39 | Q701: =G701-L701 -> 9.643149102e+39 | R701: =H701-M701 -> 1.102074183e+40 | S701: =I701-N701 -> 9.643149102e+39
A702: 11 | B702: 11 | C702: МГК с гофром (труба) 130х32,5, толщина металла 3,0 мм, диаметром 2,5м *{прим.} | D702: т | E702: =SUM(E700:E701) -> 1.115168311e+40 | F702: 72432.21 | G702: =SUM(G700:G701) -> 1.561235635e+40 | H702: =SUM(H700:H701) -> 1.784269297e+40 | I702: =SUM(I700:I701) -> 1.561235635e+40 | L702: =K702*J702 -> 0 | M702: =L702*1.179 -> 0 | N702: =M702*1.18 -> 0 | O702: =E702-J702 -> 1.115168311e+40 | Q702: =G702-L702 -> 1.561235635e+40 | R702: =H702-M702 -> 1.784269297e+40 | S702: =I702-N702 -> 1.561235635e+40
A703: 11 | B703: 11 | C703: МГК с гофром (труба) 130х32,5, толщина металла 3,0 мм, диаметром 2,5м *{прим.} | D703: т | E703: =SUM(E701:E702) -> 1.803964675e+40 | F703: 72432.21 | G703: =SUM(G701:G702) -> 2.525550545e+40 | H703: =SUM(H701:H702) -> 2.88634348e+40 | I703: =SUM(I701:I702) -> 2.525550545e+40 | L703: =K703*J703 -> 0 | M703: =L703*1.179 -> 0 | N703: =M703*1.18 -> 0 | O703: =E703-J703 -> 1.803964675e+40 | Q703: =G703-L703 -> 2.525550545e+40 | R703: =H703-M703 -> 2.88634348e+40 | S703: =I703-N703 -> 2.525550545e+40
A704: 11 | B704: 11 | C704: МГК с гофром (труба) 130х32,5, толщина металла 3,0 мм, диаметром 2,5м *{прим.} | D704: т | E704: =SUM(E702:E703) -> 2.919132986e+40 | F704: 72432.21 | G704: =SUM(G702:G703) -> 4.08678618e+40 | H704: =SUM(H702:H703) -> 4.670612777e+40 | I704: =SUM(I702:I703) -> 4.08678618e+40 | L704: =K704*J704 -> 0 | M704: =L704*1.179 -> 0 | N704: =M704*1.18 -> 0 | O704: =E704-J704 -> 2.919132986e+40 | Q704: =G704-L704 -> 4.08678618e+40 | R704: =H704-M704 -> 4.670612777e+40 | S704: =I704-N704 -> 4.08678618e+40
A705: 11 | B705: 11 | C705: МГК с гофром (труба) 130х32,5, толщина металла 3,0 мм, диаметром 2,5м *{прим.} | D705: т | E705: =SUM(E703:E704) -> 4.723097661e+40 | F705: 72432.21 | G705: =SUM(G703:G704) -> 6.612336725e+40 | H705: =SUM(H703:H704) -> 7.556956257e+40 | I705: =SUM(I703:I704) -> 6.612336725e+40 | L705: =K705*J705 -> 0 | M705: =L705*1.179 -> 0 | N705: =M705*1.18 -> 0 | O705: =E705-J705 -> 4.723097661e+40 | Q705: =G705-L705 -> 6.612336725e+40 | R705: =H705-M705 -> 7.556956257e+40 | S705: =I705-N705 -> 6.612336725e+40
A706: 11 | B706: 11 | C706: МГК с гофром (труба) 130х32,5, толщина металла 3,0 мм, диаметром 2,5м *{прим.} | D706: т | E706: =SUM(E704:E705) -> 7.642230646e+40 | F706: 72432.21 | G706: =SUM(G704:G705) -> 1.06991229e+41 | H706: =SUM(H704:H705) -> 1.222756903e+41 | I706: =SUM(I704:I705) -> 1.06991229e+41 | L706: =K706*J706 -> 0 | M706: =L706*1.179 -> 0 | N706: =M706*1.18 -> 0 | O706: =E706-J706 -> 7.642230646e+40 | Q706: =G706-L706 -> 1.06991229e+41 | R706: =H706-M706 -> 1.222756903e+41 | S706: =I706-N706 -> 1.06991229e+41
A707: 11 | B707: 11 | C707: МГК с гофром (труба) 130х32,5, толщина металла 3,0 мм, диаметром 2,5м *{прим.} | D707: т | E707: =SUM(E705:E706) -> 1.236532831e+41 | F707: 72432.21 | G707: =SUM(G705:G706) -> 1.731145963e+41 | H707: =SUM(H705:H706) -> 1.978452529e+41 | I707: =SUM(I705:I706) -> 1.731145963e+41 | L707: =K707*J707 -> 0 | M707: =L707*1.179 -> 0 | N707: =M707*1.18 -> 0 | O707: =E707-J707 -> 1.236532831e+41 | Q707: =G707-L707 -> 1.731145963e+41 | R707: =H707-M707 -> 1.978452529e+41 | S707: =I707-N707 -> 1.731145963e+41
A708: 11 | B708: 11 | C708: МГК с гофром (труба) 130х32,5, толщина металла 3,0 мм, диаметром 2,5м *{прим.} | D708: т | E708: =SUM(E706:E707) -> 2.000755895e+41 | F708: 72432.21 | G708: =SUM(G706:G707) -> 2.801058253e+41 | H708: =SUM(H706:H707) -> 3.201209433e+41 | I708: =SUM(I706:I707) -> 2.801058253e+41 | L708: =K708*J708 -> 0 | M708: =L708*1.179 -> 0 | N708: =M708*1.18 -> 0 | O708: =E708-J708 -> 2.000755895e+41 | Q708: =G708-L708 -> 2.801058253e+41 | R708: =H708-M708 -> 3.201209433e+41 | S708: =I708-N708 -> 2.801058253e+41
A709: 11 | B709: 11 | C709: МГК с гофром (труба) 130х32,5, толщина металла 3,0 мм, диаметром 2,5м *{прим.} | D709: т | E709: =SUM(E707:E708) -> 3.237288726e+41 | F709: 72432.21 | G709: =SUM(G707:G708) -> 4.532204216e+41 | H709: =SUM(H707:H708) -> 5.179661962e+41 | I709: =SUM(I707:I708) -> 4.532204216e+41 | L709: =K709*J709 -> 0 | M709: =L709*1.179 -> 0 | N709: =M709*1.18 -> 0 | O709: =E709-J709 -> 3.237288726e+41 | Q709: =G709-L709 -> 4.532204216e+41 | R709: =H709-M709 -> 5.179661962e+41 | S709: =I709-N709 -> 4.532204216e+41
A710: 11 | B710: 11 | C710: МГК с гофром (труба) 130х32,5, толщина металла 3,0 мм, диаметром 2,5м *{прим.} | D710: т | E710: =SUM(E708:E709) -> 5.238044621e+41 | F710: 72432.21 | G710: =SUM(G708:G709) -> 7.33326247e+41 | H710: =SUM(H708:H709) -> 8.380871394e+41 | I710: =SUM(I708:I709) -> 7.33326247e+41 | L710: =K710*J710 -> 0 | M710: =L710*1.179 -> 0 | N710: =M710*1.18 -> 0 | O710: =E710-J710 -> 5.238044621e+41 | Q710: =G710-L710 -> 7.33326247e+41 | R710: =H710-M710 -> 8.380871394e+41 | S710: =I710-N710 -> 7.33326247e+41
... 149 more rows

Sheet Лист1
